Workbook

Sheet 読んでね
A1: 大会申し込みソフト | M1: Takashi.Kunishima作成
A2: 基本データを入力することで、「個人戦（ダブルス、シングルス）申し込み用紙」、「団体戦申し込み用紙」、「主管校送付用ファイル」が作成されるソフトです。
A3: なお、個人戦はダブルスとシングルスがありますが、大会要項に「個人戦」と記載してある場合は、ダブルスであると解釈してください。
A4: ※国体選考会もダブルスとシングルスがありますが、ダブルスは他の学校の選手と組むことができるのでこのソフトは対応していません。
A5: 【注意事項】
A6: (1)大会ポイントが変更等された場合は、memoシートのポイントを修正して下さい。これは専門部の管理者が行った方がよい。
A7: (2)学校名が変わった場合は、学校名シートの学校名などを修正して下さい。これは専門部の管理者が行った方がよい。
A8: (3)ポイント対象大会名は大会要項を元に入力して下さい→ | G8: ダブルス | H8: シングルス | I8: 団体戦
A10: 使い方
A11: Ａ 県大会か地区大会か
B12: 県大会はベスト16以下の場合、ポイント換算しませんので、この大会が「県大会」か「地区大会」かをプルダウンで選択して下さい。
B13: 大会選択→ | D13: 県大会 | E13: sikakedesu→ Don’t touch | F13: =IF(D13="県大会",1,0) -> 1
A15: Ｂ 個人戦（ダブルス）
A16: 1 | B16: 「ﾀﾞﾌﾞﾙｽ入力」シートに申し込みデータを入力してください。
A17: 2 | B17: 申込ペア数が８ペア以下の場合は「ﾀﾞﾌﾞﾙｽ印刷１」シートを印刷します。
B18: 申込ペア数が９ペア以上の場合は「ﾀﾞﾌﾞﾙｽ印刷１」と「ﾀﾞﾌﾞﾙｽ印刷２」のシートを印刷します。
B19: 印刷した後に、印を押してもらえば、申込用紙の完成です。
A20: 3 | B20: 右のマクロボタンを押して下さい。「個人戦提出用ファイル」がこのブックが入っているフォルダに作成されます。
A22: Ｃ 個人戦（シングルス）
A23: 1 | B23: 「ｼﾝｸﾞﾙｽ入力」シートに申し込みデータを入力してください。
B24: 学校情報はダブルスの学校情報のコピー可です。
A25: 2 | B25: その後、「ｼﾝｸﾞﾙｽ印刷」シートを印刷します。
B26: 印刷した後に、印を押してもらえば、申込用紙の完成です。
A27: 3 | B27: 右のマクロボタンを押して下さい。「個人戦提出用ファイル」がこのブックが入っているフォルダに作成されます。
A29: Ｄ 団体戦
A30: 1 | B30: 「団体戦入力」シートに申し込みデータを入力してください。
B31: 学校情報はダブルスの学校情報のコピー可です。
A32: 2 | B32: その後、「団体印刷」シートを印刷します。
B33: 印刷した後に、印を押してもらえば、申込用紙の完成です。
A34: 3 | B34: 右のマクロボタンを押して下さい。「団体戦提出用ファイル」がこのブックが入っているフォルダに作成されます。
A36: Ｅ その他
A37: 1 | B37: 上記の入力が完成したら、「提出用ファイル」を主管校に送信してください。
B38: なお、ブック名は「男個○○・□□大会申込」、「男団○○・□□大会申込」（○○は学校略称、□□は大会名）などと自動的に付けられますから、ブック名はいじらないで下さい。
A40: 2 | B40: 入力セル以外にはシート保護をかけていますが、印刷範囲がうまくないときなどは、保護を解除して下さい。
B42: 新潟県高体連ソフトテニス専門部作成

Sheet ﾀﾞﾌﾞﾙｽ入力
A2: １ 個人戦（ﾀﾞﾌﾞﾙｽ）の申し込み（９ペア以上の場合は、「ﾀﾞﾌﾞﾙｽ印刷２」も使用して下さい）
A3: ① | B3: 大会名 | C3: プルダウンリストで大会名選択
A4: ② | B4: 所属地区 | C4: プルダウンリストで地区名選択 | F4: プルダウンリストというのは
A5: ③ | B5: 男女区分 | C5: プルダウンリストで男女選択 | F5: C18セルにマウスポイントを置くと、右上に▼ボタンが表示され、その▼ボタンを押すと、リストが表示されます。そこで必要な項目を選択します。
A6: ④ | B6: 学校名入力 | C6: 新潟信濃川高等学校、巻中等教育学校
A7: ⑤ | B7: 学校名略称 | C7: プルダウンリストで学校名選択
A8: ⑥ | B8: 代表者（校長） | C8: 学校長名を入力する。印刷後は公印を押すこと。
A9: ⑦ | B9: 学校〒 | C9: 学校の郵便番号
A10: ⑧ | B10: 学校住所 | C10: 新潟県は除き入力 | E10: ⑬ | F10: ポイント対象大会 | G10: 大会要項に記載されているポイント対象となる大会名をプルダウンリストで選択
A11: ⑨ | B11: 連絡先 | C11: 学校の電話番号を入力
A12: ⑩ | B12: 緊急連絡先 | C12: 携帯番号を入力 | E12: ⑭ | F12: ベンチ入り指導者名 | G12: 申込ペア数を超えない範囲で４名まで登録可能
A13: ⑪ | B13: 記載責任者 | C13: 記載責任者を入力。印刷後に印を押すこと。 | G13: 区分に「当」「外」をプルダウンリストで選択
A14: ⑫ | B14: 引率責任者 | C14: 引率責任者を入力。印刷後に印を押すこと。 | E14: ⑮ | F14: 選手入力
F15: 会員登録が済んでいない場合は申請中（プルダウンリストで選択）とする。
A19: ◎個人戦学校情報等の入力 | E19: ◎ﾎﾟｲﾝﾄ対象大会の入力
A20: ① | B20: 大会名 | E20: ⑬ | F20: 大会 | G20: 大会a | H20: 大会b | I20: 大会c | J20: 大会d
A21: ② | B21: 所属地区 | F21: 大会名（略称） | G21: 県ｲﾝﾄﾞｱ | H21: HJS | I21: 春地区
A22: ③ | B22: 男女区分
A23: ④ | B23: 学校名 | E23: ◎個人戦選手情報等の入力
A24: ⑤ | B24: 学校名略称 | D24: sikake | E24: ⑭ | F24: ベンチ入り指導者名 | G24: 区分
A25: ⑥ | B25: 代表者（校長） | D25: =IF(G25="当",1,IF(G25="外",2,3)) -> 3
A26: ⑦ | B26: 学校〒 | D26: =IF(G26="当",1,IF(G26="外",2,3)) -> 3
A27: ⑧ | B27: 学校住所 | D27: =IF(G27="当",1,IF(G27="外",2,3)) -> 3
A28: ⑨ | B28: 連絡先 | D28: =IF(G28="当",1,IF(G28="外",2,3)) -> 3
A29: ⑩ | B29: 緊急連絡先 | D29: 1
A30: ⑪ | B30: 記載責任者 | E30: ⑭ | F30: 選手入力 | P30: 大会a | Q30: 大会b | R30: 大会c | S30: 大会d
A31: ⑫ | B31: 引率責任者 | F31: 申し込み順 | G31: 選手氏名 | I31: 選手ふりがな | K31: 学年 | L31: 生年月日 | O31: 会員登録番号 | P31: ポイント（ﾎﾟｲﾝﾄ等の削除はDELでよい） | V31: 大会a | W31: 大会b | X31: 大会c | Y31: 大会d | Z31: 合計
D32: sikake | G32: 選手姓 | H32: 選手名 | I32: 選手せい | J32: 選手めい | L32: 年 | M32: 月 | N32: 日 | P32: =G21 -> 県ｲﾝﾄﾞｱ | Q32: =H21 -> HJS | R32: =I21 -> 春地区 | S32: =J21 -> 0 | T32: 合計 | V32: =IF(P32=0,"",P32&"P") -> 県ｲﾝﾄﾞｱP | W32: HJSP | X32: =IF(R32=0,"",R32&"P") -> 春地区P | Y32: =IF(S32=0,"",S32&"P") ->  | Z32: 合計
D33: ﾍﾟｱ数 | F33: 例 | G33: 巻 | H33: 花子 | I33: まき | J33: はなこ | K33: 3 | L33: 5 | M33: 11 | N33: 10 | O33: 15249012 | P33: 優勝 | Q33: ２位 | R33: 優勝 | T33: =Z33 -> 63 | V33: =IF(P33="","",IFERROR(VLOOKUP(P33,INDIRECT(V$32),2+読んでね!$F$13,FALSE),"")) -> 20 | W33: =IF(Q33="","",IFERROR(VLOOKUP(Q33,INDIRECT(W$32),2+読んでね!$F$13,FALSE),"")) -> 15 | X33: =IF(R33="","",IFERROR(VLOOKUP(R33,INDIRECT(X$32),2+読んでね!$F$13,FALSE),"")) -> 10 | Y33: =IF(S33="","",IFERROR(VLOOKUP(S33,INDIRECT(Y$32),2+読んでね!$F$13,FALSE),"")) ->  | Z33: =IF(G33="","",SUM(V33:Y34)) -> 63
D34: =COUNTA(ﾀﾞﾌﾞﾙｽ入力!G35:G66)/2 -> 0 | G34: 新潟 | H34: 美咲 | I34: にいがた | J34: みさき | K34: 1 | L34: 7 | M34: 6 | N34: 11 | O34: 申請中 | P34: ２位 | Q34: ﾍﾞｽﾄ16* | R34: ﾍﾞｽﾄ32 | V34: =IF(P34="","",IFERROR(VLOOKUP(P34,INDIRECT(V$32),2+読んでね!$F$13,FALSE),"")) -> 15 | W34: =IF(Q34="","",IFERROR(VLOOKUP(Q34,INDIRECT(W$32),2+読んでね!$F$13,FALSE),"")) -> 3 | X34: =IF(R34="","",IFERROR(VLOOKUP(R34,INDIRECT(X$32),2+読んでね!$F$13,FALSE),"")) ->  | Y34: =IF(S34="","",IFERROR(VLOOKUP(S34,INDIRECT(Y$32),2+読んでね!$F$13,FALSE),"")) -> 
D35: 11 | F35: 1 | T35: =Z35 ->  | V35: =IF(P35="","",IFERROR(VLOOKUP(P35,INDIRECT(V$32),2+読んでね!$F$13,FALSE),"")) ->  | W35: =IF(Q35="","",IFERROR(VLOOKUP(Q35,INDIRECT(W$32),2+読んでね!$F$13,FALSE),"")) ->  | X35: =IF(R35="","",IFERROR(VLOOKUP(R35,INDIRECT(X$32),2+読んでね!$F$13,FALSE),"")) ->  | Y35: =IF(S35="","",IFERROR(VLOOKUP(S35,INDIRECT(Y$32),2+読んでね!$F$13,FALSE),"")) ->  | Z35: =IF(G35="","",SUM(V35:Y36)) -> 
D36: 12 | V36: =IF(P36="","",IFERROR(VLOOKUP(P36,INDIRECT(V$32),2+読んでね!$F$13,FALSE),"")) ->  | W36: =IF(Q36="","",IFERROR(VLOOKUP(Q36,INDIRECT(W$32),2+読んでね!$F$13,FALSE),"")) ->  | X36: =IF(R36="","",IFERROR(VLOOKUP(R36,INDIRECT(X$32),2+読んでね!$F$13,FALSE),"")) ->  | Y36: =IF(S36="","",IFERROR(VLOOKUP(S36,INDIRECT(Y$32),2+読んでね!$F$13,FALSE),"")) -> 
D37: 21 | F37: 2 | T37: =Z37 ->  | V37: =IF(P37="","",IFERROR(VLOOKUP(P37,INDIRECT(V$32),2+読んでね!$F$13,FALSE),"")) ->  | W37: =IF(Q37="","",IFERROR(VLOOKUP(Q37,INDIRECT(W$32),2+読んでね!$F$13,FALSE),"")) ->  | X37: =IF(R37="","",IFERROR(VLOOKUP(R37,INDIRECT(X$32),2+読んでね!$F$13,FALSE),"")) ->  | Y37: =IF(S37="","",IFERROR(VLOOKUP(S37,INDIRECT(Y$32),2+読んでね!$F$13,FALSE),"")) ->  | Z37: =IF(G37="","",SUM(V37:Y38)) -> 
D38: 22 | V38: =IF(P38="","",IFERROR(VLOOKUP(P38,INDIRECT(V$32),2+読んでね!$F$13,FALSE),"")) ->  | W38: =IF(Q38="","",IFERROR(VLOOKUP(Q38,INDIRECT(W$32),2+読んでね!$F$13,FALSE),"")) ->  | X38: =IF(R38="","",IFERROR(VLOOKUP(R38,INDIRECT(X$32),2+読んでね!$F$13,FALSE),"")) ->  | Y38: =IF(S38="","",IFERROR(VLOOKUP(S38,INDIRECT(Y$32),2+読んでね!$F$13,FALSE),"")) -> 
D39: 31 | F39: 3 | T39: =Z39 ->  | V39: =IF(P39="","",IFERROR(VLOOKUP(P39,INDIRECT(V$32),2+読んでね!$F$13,FALSE),"")) ->  | W39: =IF(Q39="","",IFERROR(VLOOKUP(Q39,INDIRECT(W$32),2+読んでね!$F$13,FALSE),"")) ->  | X39: =IF(R39="","",IFERROR(VLOOKUP(R39,INDIRECT(X$32),2+読んでね!$F$13,FALSE),"")) ->  | Y39: =IF(S39="","",IFERROR(VLOOKUP(S39,INDIRECT(Y$32),2+読んでね!$F$13,FALSE),"")) ->  | Z39: =IF(G39="","",SUM(V39:Y40)) -> 
D40: 32 | V40: =IF(P40="","",IFERROR(VLOOKUP(P40,INDIRECT(V$32),2+読んでね!$F$13,FALSE),"")) ->  | W40: =IF(Q40="","",IFERROR(VLOOKUP(Q40,INDIRECT(W$32),2+読んでね!$F$13,FALSE),"")) ->  | X40: =IF(R40="","",IFERROR(VLOOKUP(R40,INDIRECT(X$32),2+読んでね!$F$13,FALSE),"")) ->  | Y40: =IF(S40="","",IFERROR(VLOOKUP(S40,INDIRECT(Y$32),2+読んでね!$F$13,FALSE),"")) -> 
D41: =F41*10+1 -> 41 | F41: 4 | T41: =Z41 ->  | V41: =IF(P41="","",IFERROR(VLOOKUP(P41,INDIRECT(V$32),2+読んでね!$F$13,FALSE),"")) ->  | W41: =IF(Q41="","",IFERROR(VLOOKUP(Q41,INDIRECT(W$32),2+読んでね!$F$13,FALSE),"")) ->  | X41: =IF(R41="","",IFERROR(VLOOKUP(R41,INDIRECT(X$32),2+読んでね!$F$13,FALSE),"")) ->  | Y41: =IF(S41="","",IFERROR(VLOOKUP(S41,INDIRECT(Y$32),2+読んでね!$F$13,FALSE),"")) ->  | Z41: =IF(G41="","",SUM(V41:Y42)) -> 
D42: =F41*10+2 -> 42 | V42: =IF(P42="","",IFERROR(VLOOKUP(P42,INDIRECT(V$32),2+読んでね!$F$13,FALSE),"")) ->  | W42: =IF(Q42="","",IFERROR(VLOOKUP(Q42,INDIRECT(W$32),2+読んでね!$F$13,FALSE),"")) ->  | X42: =IF(R42="","",IFERROR(VLOOKUP(R42,INDIRECT(X$32),2+読んでね!$F$13,FALSE),"")) ->  | Y42: =IF(S42="","",IFERROR(VLOOKUP(S42,INDIRECT(Y$32),2+読んでね!$F$13,FALSE),"")) -> 
D43: =F43*10+1 -> 51 | F43: 5 | V43: =IF(P43="","",IFERROR(VLOOKUP(P43,INDIRECT(V$32),2+読んでね!$F$13,FALSE),"")) ->  | W43: =IF(Q43="","",IFERROR(VLOOKUP(Q43,INDIRECT(W$32),2+読んでね!$F$13,FALSE),"")) ->  | X43: =IF(R43="","",IFERROR(VLOOKUP(R43,INDIRECT(X$32),2+読んでね!$F$13,FALSE),"")) ->  | Y43: =IF(S43="","",IFERROR(VLOOKUP(S43,INDIRECT(Y$32),2+読んでね!$F$13,FALSE),"")) ->  | Z43: =IF(G43="","",SUM(V43:Y44)) -> 
D44: =F43*10+2 -> 52 | V44: =IF(P44="","",IFERROR(VLOOKUP(P44,INDIRECT(V$32),2+読んでね!$F$13,FALSE),"")) ->  | W44: =IF(Q44="","",IFERROR(VLOOKUP(Q44,INDIRECT(W$32),2+読んでね!$F$13,FALSE),"")) ->  | X44: =IF(R44="","",IFERROR(VLOOKUP(R44,INDIRECT(X$32),2+読んでね!$F$13,FALSE),"")) ->  | Y44: =IF(S44="","",IFERROR(VLOOKUP(S44,INDIRECT(Y$32),2+読んでね!$F$13,FALSE),"")) -> 
D45: =F45*10+1 -> 61 | F45: 6 | T45: =Z45 ->  | V45: =IF(P45="","",IFERROR(VLOOKUP(P45,INDIRECT(V$32),2+読んでね!$F$13,FALSE),"")) ->  | W45: =IF(Q45="","",IFERROR(VLOOKUP(Q45,INDIRECT(W$32),2+読んでね!$F$13,FALSE),"")) ->  | X45: =IF(R45="","",IFERROR(VLOOKUP(R45,INDIRECT(X$32),2+読んでね!$F$13,FALSE),"")) ->  | Y45: =IF(S45="","",IFERROR(VLOOKUP(S45,INDIRECT(Y$32),2+読んでね!$F$13,FALSE),"")) ->  | Z45: =IF(G45="","",SUM(V45:Y46)) -> 
D46: =F45*10+2 -> 62 | V46: =IF(P46="","",IFERROR(VLOOKUP(P46,INDIRECT(V$32),2+読んでね!$F$13,FALSE),"")) ->  | W46: =IF(Q46="","",IFERROR(VLOOKUP(Q46,INDIRECT(W$32),2+読んでね!$F$13,FALSE),"")) ->  | X46: =IF(R46="","",IFERROR(VLOOKUP(R46,INDIRECT(X$32),2+読んでね!$F$13,FALSE),"")) ->  | Y46: =IF(S46="","",IFERROR(VLOOKUP(S46,INDIRECT(Y$32),2+読んでね!$F$13,FALSE),"")) -> 
D47: =F47*10+1 -> 71 | F47: 7 | T47: =Z47 ->  | V47: =IF(P47="","",IFERROR(VLOOKUP(P47,INDIRECT(V$32),2+読んでね!$F$13,FALSE),"")) ->  | W47: =IF(Q47="","",IFERROR(VLOOKUP(Q47,INDIRECT(W$32),2+読んでね!$F$13,FALSE),"")) ->  | X47: =IF(R47="","",IFERROR(VLOOKUP(R47,INDIRECT(X$32),2+読んでね!$F$13,FALSE),"")) ->  | Y47: =IF(S47="","",IFERROR(VLOOKUP(S47,INDIRECT(Y$32),2+読んでね!$F$13,FALSE),"")) ->  | Z47: =IF(G47="","",SUM(V47:Y48)) -> 
D48: =F47*10+2 -> 72 | V48: =IF(P48="","",IFERROR(VLOOKUP(P48,INDIRECT(V$32),2+読んでね!$F$13,FALSE),"")) ->  | W48: =IF(Q48="","",IFERROR(VLOOKUP(Q48,INDIRECT(W$32),2+読んでね!$F$13,FALSE),"")) ->  | X48: =IF(R48="","",IFERROR(VLOOKUP(R48,INDIRECT(X$32),2+読んでね!$F$13,FALSE),"")) ->  | Y48: =IF(S48="","",IFERROR(VLOOKUP(S48,INDIRECT(Y$32),2+読んでね!$F$13,FALSE),"")) -> 
D49: =F49*10+1 -> 81 | F49: 8 | T49: =Z49 ->  | V49: =IF(P49="","",IFERROR(VLOOKUP(P49,INDIRECT(V$32),2+読んでね!$F$13,FALSE),"")) ->  | W49: =IF(Q49="","",IFERROR(VLOOKUP(Q49,INDIRECT(W$32),2+読んでね!$F$13,FALSE),"")) ->  | X49: =IF(R49="","",IFERROR(VLOOKUP(R49,INDIRECT(X$32),2+読んでね!$F$13,FALSE),"")) ->  | Y49: =IF(S49="","",IFERROR(VLOOKUP(S49,INDIRECT(Y$32),2+読んでね!$F$13,FALSE),"")) ->  | Z49: =IF(G49="","",SUM(V49:Y50)) -> 
D50: =F49*10+2 -> 82 | V50: =IF(P50="","",IFERROR(VLOOKUP(P50,INDIRECT(V$32),2+読んでね!$F$13,FALSE),"")) ->  | W50: =IF(Q50="","",IFERROR(VLOOKUP(Q50,INDIRECT(W$32),2+読んでね!$F$13,FALSE),"")) ->  | X50: =IF(R50="","",IFERROR(VLOOKUP(R50,INDIRECT(X$32),2+読んでね!$F$13,FALSE),"")) ->  | Y50: =IF(S50="","",IFERROR(VLOOKUP(S50,INDIRECT(Y$32),2+読んでね!$F$13,FALSE),"")) -> 
D51: =F51*10+1 -> 91 | F51: 9 | T51: =Z51 ->  | V51: =IF(P51="","",IFERROR(VLOOKUP(P51,INDIRECT(V$32),2+読んでね!$F$13,FALSE),"")) ->  | W51: =IF(Q51="","",IFERROR(VLOOKUP(Q51,INDIRECT(W$32),2+読んでね!$F$13,FALSE),"")) ->  | X51: =IF(R51="","",IFERROR(VLOOKUP(R51,INDIRECT(X$32),2+読んでね!$F$13,FALSE),"")) ->  | Y51: =IF(S51="","",IFERROR(VLOOKUP(S51,INDIRECT(Y$32),2+読んでね!$F$13,FALSE),"")) ->  | Z51: =IF(G51="","",SUM(V51:Y52)) -> 
D52: =F51*10+2 -> 92 | V52: =IF(P52="","",IFERROR(VLOOKUP(P52,INDIRECT(V$32),2+読んでね!$F$13,FALSE),"")) ->  | W52: =IF(Q52="","",IFERROR(VLOOKUP(Q52,INDIRECT(W$32),2+読んでね!$F$13,FALSE),"")) ->  | X52: =IF(R52="","",IFERROR(VLOOKUP(R52,INDIRECT(X$32),2+読んでね!$F$13,FALSE),"")) ->  | Y52: =IF(S52="","",IFERROR(VLOOKUP(S52,INDIRECT(Y$32),2+読んでね!$F$13,FALSE),"")) -> 
D53: =F53*10+1 -> 101 | F53: 10 | T53: =Z53 ->  | V53: =IF(P53="","",IFERROR(VLOOKUP(P53,INDIRECT(V$32),2+読んでね!$F$13,FALSE),"")) ->  | W53: =IF(Q53="","",IFERROR(VLOOKUP(Q53,INDIRECT(W$32),2+読んでね!$F$13,FALSE),"")) ->  | X53: =IF(R53="","",IFERROR(VLOOKUP(R53,INDIRECT(X$32),2+読んでね!$F$13,FALSE),"")) ->  | Y53: =IF(S53="","",IFERROR(VLOOKUP(S53,INDIRECT(Y$32),2+読んでね!$F$13,FALSE),"")) ->  | Z53: =IF(G53="","",SUM(V53:Y54)) -> 
D54: =F53*10+2 -> 102 | V54: =IF(P54="","",IFERROR(VLOOKUP(P54,INDIRECT(V$32),2+読んでね!$F$13,FALSE),"")) ->  | W54: =IF(Q54="","",IFERROR(VLOOKUP(Q54,INDIRECT(W$32),2+読んでね!$F$13,FALSE),"")) ->  | X54: =IF(R54="","",IFERROR(VLOOKUP(R54,INDIRECT(X$32),2+読んでね!$F$13,FALSE),"")) ->  | Y54: =IF(S54="","",IFERROR(VLOOKUP(S54,INDIRECT(Y$32),2+読んでね!$F$13,FALSE),"")) -> 
D55: =F55*10+1 -> 111 | F55: 11 | T55: =Z55 ->  | V55: =IF(P55="","",IFERROR(VLOOKUP(P55,INDIRECT(V$32),2+読んでね!$F$13,FALSE),"")) ->  | W55: =IF(Q55="","",IFERROR(VLOOKUP(Q55,INDIRECT(W$32),2+読んでね!$F$13,FALSE),"")) ->  | X55: =IF(R55="","",IFERROR(VLOOKUP(R55,INDIRECT(X$32),2+読んでね!$F$13,FALSE),"")) ->  | Y55: =IF(S55="","",IFERROR(VLOOKUP(S55,INDIRECT(Y$32),2+読んでね!$F$13,FALSE),"")) ->  | Z55: =IF(G55="","",SUM(V55:Y56)) -> 
D56: =F55*10+2 -> 112 | V56: =IF(P56="","",IFERROR(VLOOKUP(P56,INDIRECT(V$32),2+読んでね!$F$13,FALSE),"")) ->  | W56: =IF(Q56="","",IFERROR(VLOOKUP(Q56,INDIRECT(W$32),2+読んでね!$F$13,FALSE),"")) ->  | X56: =IF(R56="","",IFERROR(VLOOKUP(R56,INDIRECT(X$32),2+読んでね!$F$13,FALSE),"")) ->  | Y56: =IF(S56="","",IFERROR(VLOOKUP(S56,INDIRECT(Y$32),2+読んでね!$F$13,FALSE),"")) -> 
D57: =F57*10+1 -> 121 | F57: 12 | T57: =Z57 ->  | V57: =IF(P57="","",IFERROR(VLOOKUP(P57,INDIRECT(V$32),2+読んでね!$F$13,FALSE),"")) ->  | W57: =IF(Q57="","",IFERROR(VLOOKUP(Q57,INDIRECT(W$32),2+読んでね!$F$13,FALSE),"")) ->  | X57: =IF(R57="","",IFERROR(VLOOKUP(R57,INDIRECT(X$32),2+読んでね!$F$13,FALSE),"")) ->  | Y57: =IF(S57="","",IFERROR(VLOOKUP(S57,INDIRECT(Y$32),2+読んでね!$F$13,FALSE),"")) ->  | Z57: =IF(G57="","",SUM(V57:Y58)) -> 
D58: =F57*10+2 -> 122 | V58: =IF(P58="","",IFERROR(VLOOKUP(P58,INDIRECT(V$32),2+読んでね!$F$13,FALSE),"")) ->  | W58: =IF(Q58="","",IFERROR(VLOOKUP(Q58,INDIRECT(W$32),2+読んでね!$F$13,FALSE),"")) ->  | X58: =IF(R58="","",IFERROR(VLOOKUP(R58,INDIRECT(X$32),2+読んでね!$F$13,FALSE),"")) ->  | Y58: =IF(S58="","",IFERROR(VLOOKUP(S58,INDIRECT(Y$32),2+読んでね!$F$13,FALSE),"")) -> 
D59: =F59*10+1 -> 131 | F59: 13 | T59: =Z59 ->  | V59: =IF(P59="","",IFERROR(VLOOKUP(P59,INDIRECT(V$32),2+読んでね!$F$13,FALSE),"")) ->  | W59: =IF(Q59="","",IFERROR(VLOOKUP(Q59,INDIRECT(W$32),2+読んでね!$F$13,FALSE),"")) ->  | X59: =IF(R59="","",IFERROR(VLOOKUP(R59,INDIRECT(X$32),2+読んでね!$F$13,FALSE),"")) ->  | Y59: =IF(S59="","",IFERROR(VLOOKUP(S59,INDIRECT(Y$32),2+読んでね!$F$13,FALSE),"")) ->  | Z59: =IF(G59="","",SUM(V59:Y60)) -> 
D60: =F59*10+2 -> 132 | V60: =IF(P60="","",IFERROR(VLOOKUP(P60,INDIRECT(V$32),2+読んでね!$F$13,FALSE),"")) ->  | W60: =IF(Q60="","",IFERROR(VLOOKUP(Q60,INDIRECT(W$32),2+読んでね!$F$13,FALSE),"")) ->  | X60: =IF(R60="","",IFERROR(VLOOKUP(R60,INDIRECT(X$32),2+読んでね!$F$13,FALSE),"")) ->  | Y60: =IF(S60="","",IFERROR(VLOOKUP(S60,INDIRECT(Y$32),2+読んでね!$F$13,FALSE),"")) -> 
D61: =F61*10+1 -> 141 | F61: 14 | T61: =Z61 ->  | V61: =IF(P61="","",IFERROR(VLOOKUP(P61,INDIRECT(V$32),2+読んでね!$F$13,FALSE),"")) ->  | W61: =IF(Q61="","",IFERROR(VLOOKUP(Q61,INDIRECT(W$32),2+読んでね!$F$13,FALSE),"")) ->  | X61: =IF(R61="","",IFERROR(VLOOKUP(R61,INDIRECT(X$32),2+読んでね!$F$13,FALSE),"")) ->  | Y61: =IF(S61="","",IFERROR(VLOOKUP(S61,INDIRECT(Y$32),2+読んでね!$F$13,FALSE),"")) ->  | Z61: =IF(G61="","",SUM(V61:Y62)) -> 
D62: =F61*10+2 -> 142 | V62: =IF(P62="","",IFERROR(VLOOKUP(P62,INDIRECT(V$32),2+読んでね!$F$13,FALSE),"")) ->  | W62: =IF(Q62="","",IFERROR(VLOOKUP(Q62,INDIRECT(W$32),2+読んでね!$F$13,FALSE),"")) ->  | X62: =IF(R62="","",IFERROR(VLOOKUP(R62,INDIRECT(X$32),2+読んでね!$F$13,FALSE),"")) ->  | Y62: =IF(S62="","",IFERROR(VLOOKUP(S62,INDIRECT(Y$32),2+読んでね!$F$13,FALSE),"")) -> 
D63: =F63*10+1 -> 151 | F63: 15 | T63: =Z63 ->  | V63: =IF(P63="","",IFERROR(VLOOKUP(P63,INDIRECT(V$32),2+読んでね!$F$13,FALSE),"")) ->  | W63: =IF(Q63="","",IFERROR(VLOOKUP(Q63,INDIRECT(W$32),2+読んでね!$F$13,FALSE),"")) ->  | X63: =IF(R63="","",IFERROR(VLOOKUP(R63,INDIRECT(X$32),2+読んでね!$F$13,FALSE),"")) ->  | Y63: =IF(S63="","",IFERROR(VLOOKUP(S63,INDIRECT(Y$32),2+読んでね!$F$13,FALSE),"")) ->  | Z63: =IF(G63="","",SUM(V63:Y64)) -> 
D64: =F63*10+2 -> 152 | V64: =IF(P64="","",IFERROR(VLOOKUP(P64,INDIRECT(V$32),2+読んでね!$F$13,FALSE),"")) ->  | W64: =IF(Q64="","",IFERROR(VLOOKUP(Q64,INDIRECT(W$32),2+読んでね!$F$13,FALSE),"")) ->  | X64: =IF(R64="","",IFERROR(VLOOKUP(R64,INDIRECT(X$32),2+読んでね!$F$13,FALSE),"")) ->  | Y64: =IF(S64="","",IFERROR(VLOOKUP(S64,INDIRECT(Y$32),2+読んでね!$F$13,FALSE),"")) -> 
D65: =F65*10+1 -> 161 | F65: 16 | T65: =Z65 ->  | V65: =IF(P65="","",IFERROR(VLOOKUP(P65,INDIRECT(V$32),2+読んでね!$F$13,FALSE),"")) ->  | W65: =IF(Q65="","",IFERROR(VLOOKUP(Q65,INDIRECT(W$32),2+読んでね!$F$13,FALSE),"")) ->  | X65: =IF(R65="","",IFERROR(VLOOKUP(R65,INDIRECT(X$32),2+読んでね!$F$13,FALSE),"")) ->  | Y65: =IF(S65="","",IFERROR(VLOOKUP(S65,INDIRECT(Y$32),2+読んでね!$F$13,FALSE),"")) ->  | Z65: =IF(G65="","",SUM(V65:Y66)) -> 
D66: =F65*10+2 -> 162 | V66: =IF(P66="","",IFERROR(VLOOKUP(P66,INDIRECT(V$32),2+読んでね!$F$13,FALSE),"")) ->  | W66: =IF(Q66="","",IFERROR(VLOOKUP(Q66,INDIRECT(W$32),2+読んでね!$F$13,FALSE),"")) ->  | X66: =IF(R66="","",IFERROR(VLOOKUP(R66,INDIRECT(X$32),2+読んでね!$F$13,FALSE),"")) ->  | Y66: =IF(S66="","",IFERROR(VLOOKUP(S66,INDIRECT(Y$32),2+読んでね!$F$13,FALSE),"")) -> 

Sheet ｼﾝｸﾞﾙｽ入力
A2: １ 個人戦（ｼﾝｸﾞﾙｽ）の申し込み
A3: ① | B3: 大会名 | C3: プルダウンリストで大会名選択
A4: ② | B4: 所属地区 | C4: プルダウンリストで地区名選択
A5: ③ | B5: 男女区分 | C5: プルダウンリストで男女選択
A6: ④ | B6: 学校名入力 | C6: 新潟信濃川高等学校、巻中等教育学校
A7: ⑤ | B7: 学校名略称 | C7: プルダウンリストで学校名選択
A8: ⑥ | B8: 代表者（校長） | C8: 学校長名を入力する。印刷後は公印を押すこと。
A9: ⑦ | B9: 学校〒 | C9: 学校の郵便番号
A10: ⑧ | B10: 学校住所 | C10: 新潟県は除き入力 | E10: ⑬ | F10: ポイント対象大会 | G10: 大会要項に記載されているポイント対象となる大会名をプルダウンリストで選択
A11: ⑨ | B11: 連絡先 | C11: 学校の電話番号を入力
A12: ⑩ | B12: 緊急連絡先 | C12: 携帯番号を入力 | E12: ⑮ | F12: 選手入力
A13: ⑪ | B13: 記載責任者 | C13: 記載責任者を入力。印刷後に印を押すこと。 | F13: 会員登録が済んでいない場合は申請中（プルダウンリストで選択）とする。
A14: ⑫ | B14: 引率責任者 | C14: 引率責任者を入力。印刷後に印を押すこと。
A19: ◎個人戦学校情報等の入力 | E19: ◎ﾎﾟｲﾝﾄ対象大会の入力
A20: ① | B20: 大会名 | E20: ⑬ | F20: 大会 | G20: 大会a | H20: 大会b | I20: 大会c | J20: 大会d
A21: ② | B21: 所属地区 | F21: 大会名（略称）
A22: ③ | B22: 男女区分
A23: ④ | B23: 学校名 | E23: ◎選手情報等の入力
A24: ⑤ | B24: 学校名略称 | E24: ⑭ | F24: 選手入力 | P24: 大会a | Q24: 大会b | R24: 大会c | S24: 大会d
A25: ⑥ | B25: 代表者（校長） | F25: 申し込み順 | G25: 選手氏名 | I25: 選手ふりがな | K25: 学年 | L25: 生年月日 | O25: 会員登録番号 | P25: ポイント（ﾎﾟｲﾝﾄ等の削除はDELでよい） | V25: 大会a | W25: 大会b | X25: 大会c | Y25: 大会d | Z25: 合計
A26: ⑦ | B26: 学校〒 | G26: 選手姓 | H26: 選手名 | I26: 選手せい | J26: 選手めい | L26: 年 | M26: 月 | N26: 日 | P26: =G21 -> 0 | Q26: =H21 -> 0 | R26: =I21 -> 0 | S26: =J21 -> 0 | T26: 合計 | V26: =IF(P26=0,"",P26&"P") ->  | X26: =IF(R26=0,"",R26&"P") ->  | Y26: =IF(S26=0,"",S26&"P") ->  | Z26: 合計
A27: ⑧ | B27: 学校住所 | F27: 例 | G27: 巻 | H27: 花子 | I27: まき | J27: はなこ | K27: 3 | L27: 5 | M27: 11 | N27: 10 | O27: 15249012 | P27: 優勝 | Q27: ２位 | R27: ﾍﾞｽﾄ12* | T27: =Z27 -> 0 | V27: =IF(P27="","",IFERROR(VLOOKUP(P27,INDIRECT(V$26),2+読んでね!$F$13,FALSE),"")) ->  | W27: =IF(Q27="","",IFERROR(VLOOKUP(Q27,INDIRECT(W$26),2+読んでね!$F$13,FALSE),"")) ->  | X27: =IF(R27="","",IFERROR(VLOOKUP(R27,INDIRECT(X$26),2+読んでね!$F$13,FALSE),"")) ->  | Y27: =IF(S27="","",IFERROR(VLOOKUP(S27,INDIRECT(Y$26),2+読んでね!$F$13,FALSE),"")) ->  | Z27: =IF(G27="","",SUM(V27:Y27)) -> 0
A28: ⑨ | B28: 連絡先 | F28: 1 | T28: =Z28 ->  | V28: =IF(P28="","",IFERROR(VLOOKUP(P28,INDIRECT(V$26),2+読んでね!$F$13,FALSE),"")) ->  | W28: =IF(Q28="","",IFERROR(VLOOKUP(Q28,INDIRECT(W$26),2+読んでね!$F$13,FALSE),"")) ->  | X28: =IF(R28="","",IFERROR(VLOOKUP(R28,INDIRECT(X$26),2+読んでね!$F$13,FALSE),"")) ->  | Y28: =IF(S28="","",IFERROR(VLOOKUP(S28,INDIRECT(Y$26),2+読んでね!$F$13,FALSE),"")) ->  | Z28: =IF(G28="","",SUM(V28:Y28)) -> 
A29: ⑩ | B29: 緊急連絡先 | F29: 2 | T29: =Z29 ->  | V29: =IF(P29="","",IFERROR(VLOOKUP(P29,INDIRECT(V$26),2+読んでね!$F$13,FALSE),"")) ->  | W29: =IF(Q29="","",IFERROR(VLOOKUP(Q29,INDIRECT(W$26),2+読んでね!$F$13,FALSE),"")) ->  | X29: =IF(R29="","",IFERROR(VLOOKUP(R29,INDIRECT(X$26),2+読んでね!$F$13,FALSE),"")) ->  | Y29: =IF(S29="","",IFERROR(VLOOKUP(S29,INDIRECT(Y$26),2+読んでね!$F$13,FALSE),"")) -> 
A30: ⑪ | B30: 記載責任者 | F30: 3 | T30: =Z30 ->  | V30: =IF(P30="","",IFERROR(VLOOKUP(P30,INDIRECT(V$26),2+読んでね!$F$13,FALSE),"")) ->  | W30: =IF(Q30="","",IFERROR(VLOOKUP(Q30,INDIRECT(W$26),2+読んでね!$F$13,FALSE),"")) ->  | X30: =IF(R30="","",IFERROR(VLOOKUP(R30,INDIRECT(X$26),2+読んでね!$F$13,FALSE),"")) ->  | Y30: =IF(S30="","",IFERROR(VLOOKUP(S30,INDIRECT(Y$26),2+読んでね!$F$13,FALSE),"")) -> 
A31: ⑫ | B31: 引率責任者 | F31: 4 | T31: =Z31 ->  | V31: =IF(P31="","",IFERROR(VLOOKUP(P31,INDIRECT(V$26),2+読んでね!$F$13,FALSE),"")) ->  | W31: =IF(Q31="","",IFERROR(VLOOKUP(Q31,INDIRECT(W$26),2+読んでね!$F$13,FALSE),"")) ->  | X31: =IF(R31="","",IFERROR(VLOOKUP(R31,INDIRECT(X$26),2+読んでね!$F$13,FALSE),"")) ->  | Y31: =IF(S31="","",IFERROR(VLOOKUP(S31,INDIRECT(Y$26),2+読んでね!$F$13,FALSE),"")) -> 
F32: 5 | V32: =IF(P32="","",IFERROR(VLOOKUP(P32,INDIRECT(V$26),2+読んでね!$F$13,FALSE),"")) ->  | W32: =IF(Q32="","",IFERROR(VLOOKUP(Q32,INDIRECT(W$26),2+読んでね!$F$13,FALSE),"")) ->  | X32: =IF(R32="","",IFERROR(VLOOKUP(R32,INDIRECT(X$26),2+読んでね!$F$13,FALSE),"")) ->  | Y32: =IF(S32="","",IFERROR(VLOOKUP(S32,INDIRECT(Y$26),2+読んでね!$F$13,FALSE),"")) -> 
F33: 6 | T33: =Z33 ->  | V33: =IF(P33="","",IFERROR(VLOOKUP(P33,INDIRECT(V$26),2+読んでね!$F$13,FALSE),"")) ->  | W33: =IF(Q33="","",IFERROR(VLOOKUP(Q33,INDIRECT(W$26),2+読んでね!$F$13,FALSE),"")) ->  | X33: =IF(R33="","",IFERROR(VLOOKUP(R33,INDIRECT(X$26),2+読んでね!$F$13,FALSE),"")) ->  | Y33: =IF(S33="","",IFERROR(VLOOKUP(S33,INDIRECT(Y$26),2+読んでね!$F$13,FALSE),"")) -> 
F34: 7 | T34: =Z34 ->  | V34: =IF(P34="","",IFERROR(VLOOKUP(P34,INDIRECT(V$26),2+読んでね!$F$13,FALSE),"")) ->  | W34: =IF(Q34="","",IFERROR(VLOOKUP(Q34,INDIRECT(W$26),2+読んでね!$F$13,FALSE),"")) ->  | X34: =IF(R34="","",IFERROR(VLOOKUP(R34,INDIRECT(X$26),2+読んでね!$F$13,FALSE),"")) ->  | Y34: =IF(S34="","",IFERROR(VLOOKUP(S34,INDIRECT(Y$26),2+読んでね!$F$13,FALSE),"")) -> 
F35: 8 | T35: =Z35 ->  | V35: =IF(P35="","",IFERROR(VLOOKUP(P35,INDIRECT(V$26),2+読んでね!$F$13,FALSE),"")) ->  | W35: =IF(Q35="","",IFERROR(VLOOKUP(Q35,INDIRECT(W$26),2+読んでね!$F$13,FALSE),"")) ->  | X35: =IF(R35="","",IFERROR(VLOOKUP(R35,INDIRECT(X$26),2+読んでね!$F$13,FALSE),"")) ->  | Y35: =IF(S35="","",IFERROR(VLOOKUP(S35,INDIRECT(Y$26),2+読んでね!$F$13,FALSE),"")) -> 
F36: 9 | T36: =Z36 ->  | V36: =IF(P36="","",IFERROR(VLOOKUP(P36,INDIRECT(V$26),2+読んでね!$F$13,FALSE),"")) ->  | W36: =IF(Q36="","",IFERROR(VLOOKUP(Q36,INDIRECT(W$26),2+読んでね!$F$13,FALSE),"")) ->  | X36: =IF(R36="","",IFERROR(VLOOKUP(R36,INDIRECT(X$26),2+読んでね!$F$13,FALSE),"")) ->  | Y36: =IF(S36="","",IFERROR(VLOOKUP(S36,INDIRECT(Y$26),2+読んでね!$F$13,FALSE),"")) -> 
F37: 10 | T37: =Z37 ->  | V37: =IF(P37="","",IFERROR(VLOOKUP(P37,INDIRECT(V$26),2+読んでね!$F$13,FALSE),"")) ->  | W37: =IF(Q37="","",IFERROR(VLOOKUP(Q37,INDIRECT(W$26),2+読んでね!$F$13,FALSE),"")) ->  | X37: =IF(R37="","",IFERROR(VLOOKUP(R37,INDIRECT(X$26),2+読んでね!$F$13,FALSE),"")) ->  | Y37: =IF(S37="","",IFERROR(VLOOKUP(S37,INDIRECT(Y$26),2+読んでね!$F$13,FALSE),"")) -> 
F38: 11 | T38: =Z38 ->  | V38: =IF(P38="","",IFERROR(VLOOKUP(P38,INDIRECT(V$26),2+読んでね!$F$13,FALSE),"")) ->  | W38: =IF(Q38="","",IFERROR(VLOOKUP(Q38,INDIRECT(W$26),2+読んでね!$F$13,FALSE),"")) ->  | X38: =IF(R38="","",IFERROR(VLOOKUP(R38,INDIRECT(X$26),2+読んでね!$F$13,FALSE),"")) ->  | Y38: =IF(S38="","",IFERROR(VLOOKUP(S38,INDIRECT(Y$26),2+読んでね!$F$13,FALSE),"")) -> 
F39: 12 | T39: =Z39 ->  | V39: =IF(P39="","",IFERROR(VLOOKUP(P39,INDIRECT(V$26),2+読んでね!$F$13,FALSE),"")) ->  | W39: =IF(Q39="","",IFERROR(VLOOKUP(Q39,INDIRECT(W$26),2+読んでね!$F$13,FALSE),"")) ->  | X39: =IF(R39="","",IFERROR(VLOOKUP(R39,INDIRECT(X$26),2+読んでね!$F$13,FALSE),"")) ->  | Y39: =IF(S39="","",IFERROR(VLOOKUP(S39,INDIRECT(Y$26),2+読んでね!$F$13,FALSE),"")) -> 

Sheet 団体戦入力
A1: ２ 団体戦の申し込み
A3: ① | B3: 大会名 | C3: プルダウンリストで大会名選択
A4: ② | B4: 所属地区 | C4: プルダウンリストで地区名選択
A5: ③ | B5: 男女区分 | C5: プルダウンリストで男女選択
A6: ④ | B6: 学校名入力 | C6: 新潟信濃川高等学校、巻中等教育学校 | D6: ⑬ | E6: 合同チームの場合の他の学校名を入力する。
A7: ⑤ | B7: 学校名略称 | C7: プルダウンリストで学校名選択 | D7: ⑭ | E7: 監督者名 区分に「当」「外」をプルダウンリストで選択
A8: ⑥ | B8: 代表者（校長） | C8: 学校長名を入力する。印刷後は公印を押すこと。 | E8: 合同チームの監督は合同チームのいずれかの監督１名を記載する。よってA、B校で合同チームを組むとき、A校の監督が合同チームの監督になる場合、A校の申し込み書に監督名を入力し、B校の申し込み書の監督名は空欄とする。
A9: ⑦ | B9: 学校〒 | C9: 学校の郵便番号
A10: ⑧ | B10: 学校住所 | C10: 新潟県は除き入力
A11: ⑨ | B11: 連絡先 | C11: 学校の電話番号を入力 | D11: ⑮ | E11: 大会ポイント 大会要項に記載されているポイント対象となる大会名および成績ををプルダウンリストで選択
A12: ⑩ | B12: 緊急連絡先 | C12: 携帯番号を入力
A13: ⑪ | B13: 記載責任者 | C13: 記載責任者を入力。印刷後に印を押すこと。 | D13: ⑯ | E13: 選手入力
A14: ⑫ | B14: 引率責任者 | C14: 引率責任者を入力。印刷後に印を押すこと。 | E14: 会員登録が済んでいない場合は申請中（プルダウンリストで選択）とする。
A17: ◎団体戦学校情報等の入力（個人戦の情報のコピー可） | E17: ◎団体戦選手情報等の入力
A18: ① | B18: 大会名 | E18: ⑬ | F18: 合同チームの場合の他の学校名 | I18: ⑮ | J18: ﾎﾟｲﾝﾄ対象大会
A19: ② | B19: 所属地区 | F19: A校 | J19: 大会名 | K19: 成績 | L19: ポイント
A20: ③ | B20: 男女区分 | F20: B校 | L20: =IF(OR(J20="",K20=""),"",VLOOKUP(K20,INDIRECT("団体"&J20&"P"),2,FALSE)) -> 
A21: ④ | B21: 学校名 | L21: =IF(OR(J21="",K21=""),"",VLOOKUP(K21,INDIRECT("団体"&J21&"P"),2,FALSE)) -> 
A22: ⑤ | B22: 学校名略称 | D22: sikake | E22: ⑭ | F22: 監督名 | G22: 区分
A23: ⑥ | B23: 代表者（校長） | D23: =IF(G23="当",1,IF(G23="外",2,3)) -> 3 | J23: 合計 | L23: =SUM(L20:L22) -> 0
A24: ⑦ | B24: 学校〒
A25: ⑧ | B25: 学校住所 | E25: ⑯ | F25: 選手入力
A26: ⑨ | B26: 連絡先 | G26: 選手氏名 | I26: 選手ふりがな | K26: 学年 | L26: 生年月日 | O26: 会員登録番号
A27: ⑩ | B27: 緊急連絡先 | G27: 選手姓 | H27: 選手名 | I27: 選手せい | J27: 選手めい | L27: 年 | M27: 月 | N27: 日
A28: ⑪ | B28: 記載責任者 | F28: 1
A29: ⑫ | B29: 引率責任者 | C29: 国島 孝志 | F29: 2
F30: 3
F31: 4
F32: 5
F33: 6
F34: 7
F35: 8

Sheet ﾀﾞﾌﾞﾙｽ印刷１
A2: =ﾀﾞﾌﾞﾙｽ入力!$C$20 -> 0 | J2: 大会 | M2: =ﾀﾞﾌﾞﾙｽ入力!$C$22&"個人戦申込書" -> 個人戦申込書 | P2: ="("&ﾀﾞﾌﾞﾙｽ入力!$C$21 -> ( | Q2: 地区校)
A4: 大会会長 様 | J4: 学 校 名 | L4: =ﾀﾞﾌﾞﾙｽ入力!C23 -> 0 | P4: (略称) | Q4: =ﾀﾞﾌﾞﾙｽ入力!C24 -> 0
J5: 代 表 者 | L5: =ﾀﾞﾌﾞﾙｽ入力!C25 -> 0
A6: ベンチ入り指導者名（区分は「当」「外」） | J6: 住 所 | L6: ="〒"&ﾀﾞﾌﾞﾙｽ入力!C26&" "&ﾀﾞﾌﾞﾙｽ入力!C27 -> 〒
A7: 1 | B7: =ﾀﾞﾌﾞﾙｽ入力!$F$25 -> 0 | J7: 連 絡 先 | L7: ℡ | M7: =ﾀﾞﾌﾞﾙｽ入力!C28 -> 0
A8: 2 | B8: =ﾀﾞﾌﾞﾙｽ入力!$F$26 -> 0 | J8: 緊急連絡先 | L8: ℡ | M8: =ﾀﾞﾌﾞﾙｽ入力!C29 -> 0
A9: 3 | B9: =ﾀﾞﾌﾞﾙｽ入力!$F$27 -> 0 | J9: 記載責任者 | L9: =ﾀﾞﾌﾞﾙｽ入力!C30 -> 0 | Q9: ㊞
A10: 4 | B10: =ﾀﾞﾌﾞﾙｽ入力!$F$28 -> 0 | J10: 引率責任者 | L10: =ﾀﾞﾌﾞﾙｽ入力!C31 -> 0 | Q10: ㊞
A11: ※申込ペア数を超えない範囲で登録可能（４名まで）。
A12: 申込順 | B12: 選手氏名 | D12: 学 年 | E12: 生年月日 | J12: 会員登録番号 | M12: 備 考 欄 ※大会名とポイントを記入する。
M13: =ﾀﾞﾌﾞﾙｽ入力!$P$32 -> 県ｲﾝﾄﾞｱ | N13: =ﾀﾞﾌﾞﾙｽ入力!$Q$32 -> HJS | O13: =ﾀﾞﾌﾞﾙｽ入力!$R$32 -> 春地区 | P13: =ﾀﾞﾌﾞﾙｽ入力!$S$32 -> 0 | Q13: 合計
A14: 1 | B14: =ﾀﾞﾌﾞﾙｽ入力!I35 -> 0 | C14: =ﾀﾞﾌﾞﾙｽ入力!J35 -> 0 | D14: =ﾀﾞﾌﾞﾙｽ入力!K35 -> 0 | E14: =ﾀﾞﾌﾞﾙｽ入力!L35 -> 0 | F14: ． | G14: =ﾀﾞﾌﾞﾙｽ入力!M35 -> 0 | H14: ． | I14: =ﾀﾞﾌﾞﾙｽ入力!N35 -> 0 | J14: =ﾀﾞﾌﾞﾙｽ入力!O35 -> 0 | M14: =ﾀﾞﾌﾞﾙｽ入力!P35 -> 0 | N14: =ﾀﾞﾌﾞﾙｽ入力!Q35 -> 0 | O14: =ﾀﾞﾌﾞﾙｽ入力!R35 -> 0 | P14: =ﾀﾞﾌﾞﾙｽ入力!S35 -> 0 | Q14: =ﾀﾞﾌﾞﾙｽ入力!Z35 -> 
B15: =ﾀﾞﾌﾞﾙｽ入力!G35 -> 0 | C15: =ﾀﾞﾌﾞﾙｽ入力!H35 -> 0 | M15: =ﾀﾞﾌﾞﾙｽ入力!V35 ->  | N15: =ﾀﾞﾌﾞﾙｽ入力!W35 ->  | O15: =ﾀﾞﾌﾞﾙｽ入力!X35 ->  | P15: =ﾀﾞﾌﾞﾙｽ入力!Y35 -> 
B16: =ﾀﾞﾌﾞﾙｽ入力!I36 -> 0 | C16: =ﾀﾞﾌﾞﾙｽ入力!J36 -> 0 | D16: =ﾀﾞﾌﾞﾙｽ入力!K36 -> 0 | E16: =ﾀﾞﾌﾞﾙｽ入力!L36 -> 0 | F16: ． | G16: =ﾀﾞﾌﾞﾙｽ入力!M36 -> 0 | H16: ． | I16: =ﾀﾞﾌﾞﾙｽ入力!N36 -> 0 | J16: =ﾀﾞﾌﾞﾙｽ入力!O36 -> 0 | M16: =ﾀﾞﾌﾞﾙｽ入力!P36 -> 0 | N16: =ﾀﾞﾌﾞﾙｽ入力!Q36 -> 0 | O16: =ﾀﾞﾌﾞﾙｽ入力!R36 -> 0 | P16: =ﾀﾞﾌﾞﾙｽ入力!S36 -> 0
B17: =ﾀﾞﾌﾞﾙｽ入力!G36 -> 0 | C17: =ﾀﾞﾌﾞﾙｽ入力!H36 -> 0 | M17: =ﾀﾞﾌﾞﾙｽ入力!V36 ->  | N17: =ﾀﾞﾌﾞﾙｽ入力!W36 ->  | O17: =ﾀﾞﾌﾞﾙｽ入力!X36 ->  | P17: =ﾀﾞﾌﾞﾙｽ入力!Y36 -> 
A18: 2 | B18: =ﾀﾞﾌﾞﾙｽ入力!I37 -> 0 | C18: =ﾀﾞﾌﾞﾙｽ入力!J37 -> 0 | D18: =ﾀﾞﾌﾞﾙｽ入力!K37 -> 0 | E18: =ﾀﾞﾌﾞﾙｽ入力!L37 -> 0 | F18: ． | G18: =ﾀﾞﾌﾞﾙｽ入力!M37 -> 0 | H18: ． | I18: =ﾀﾞﾌﾞﾙｽ入力!N37 -> 0 | J18: =ﾀﾞﾌﾞﾙｽ入力!O37 -> 0 | M18: =ﾀﾞﾌﾞﾙｽ入力!P37 -> 0 | N18: =ﾀﾞﾌﾞﾙｽ入力!Q37 -> 0 | O18: =ﾀﾞﾌﾞﾙｽ入力!R37 -> 0 | P18: =ﾀﾞﾌﾞﾙｽ入力!S37 -> 0 | Q18: =ﾀﾞﾌﾞﾙｽ入力!Z37 -> 
B19: =ﾀﾞﾌﾞﾙｽ入力!G37 -> 0 | C19: =ﾀﾞﾌﾞﾙｽ入力!H37 -> 0 | M19: =ﾀﾞﾌﾞﾙｽ入力!V37 ->  | N19: =ﾀﾞﾌﾞﾙｽ入力!W37 ->  | O19: =ﾀﾞﾌﾞﾙｽ入力!X37 ->  | P19: =ﾀﾞﾌﾞﾙｽ入力!Y37 -> 
B20: =ﾀﾞﾌﾞﾙｽ入力!I38 -> 0 | C20: =ﾀﾞﾌﾞﾙｽ入力!J38 -> 0 | D20: =ﾀﾞﾌﾞﾙｽ入力!K38 -> 0 | E20: =ﾀﾞﾌﾞﾙｽ入力!L38 -> 0 | F20: ． | G20: =ﾀﾞﾌﾞﾙｽ入力!M38 -> 0 | H20: ． | I20: =ﾀﾞﾌﾞﾙｽ入力!N38 -> 0 | J20: =ﾀﾞﾌﾞﾙｽ入力!O38 -> 0 | M20: =ﾀﾞﾌﾞﾙｽ入力!P38 -> 0 | N20: =ﾀﾞﾌﾞﾙｽ入力!Q38 -> 0 | O20: =ﾀﾞﾌﾞﾙｽ入力!R38 -> 0 | P20: =ﾀﾞﾌﾞﾙｽ入力!S38 -> 0
B21: =ﾀﾞﾌﾞﾙｽ入力!G38 -> 0 | C21: =ﾀﾞﾌﾞﾙｽ入力!H38 -> 0 | M21: =ﾀﾞﾌﾞﾙｽ入力!V38 ->  | N21: =ﾀﾞﾌﾞﾙｽ入力!W38 ->  | O21: =ﾀﾞﾌﾞﾙｽ入力!X38 ->  | P21: =ﾀﾞﾌﾞﾙｽ入力!Y38 -> 
A22: 3 | B22: =ﾀﾞﾌﾞﾙｽ入力!I39 -> 0 | C22: =ﾀﾞﾌﾞﾙｽ入力!J39 -> 0 | D22: =ﾀﾞﾌﾞﾙｽ入力!K39 -> 0 | E22: =ﾀﾞﾌﾞﾙｽ入力!L39 -> 0 | F22: ． | G22: =ﾀﾞﾌﾞﾙｽ入力!M39 -> 0 | H22: ． | I22: =ﾀﾞﾌﾞﾙｽ入力!N39 -> 0 | J22: =ﾀﾞﾌﾞﾙｽ入力!O39 -> 0 | M22: =ﾀﾞﾌﾞﾙｽ入力!P39 -> 0 | N22: =ﾀﾞﾌﾞﾙｽ入力!Q39 -> 0 | O22: =ﾀﾞﾌﾞﾙｽ入力!R39 -> 0 | P22: =ﾀﾞﾌﾞﾙｽ入力!S39 -> 0 | Q22: =ﾀﾞﾌﾞﾙｽ入力!Z39 -> 
B23: =ﾀﾞﾌﾞﾙｽ入力!G39 -> 0 | C23: =ﾀﾞﾌﾞﾙｽ入力!H39 -> 0 | M23: =ﾀﾞﾌﾞﾙｽ入力!V39 ->  | N23: =ﾀﾞﾌﾞﾙｽ入力!W39 ->  | O23: =ﾀﾞﾌﾞﾙｽ入力!X39 ->  | P23: =ﾀﾞﾌﾞﾙｽ入力!Y39 -> 
B24: =ﾀﾞﾌﾞﾙｽ入力!I40 -> 0 | C24: =ﾀﾞﾌﾞﾙｽ入力!J40 -> 0 | D24: =ﾀﾞﾌﾞﾙｽ入力!K40 -> 0 | E24: =ﾀﾞﾌﾞﾙｽ入力!L40 -> 0 | F24: ． | G24: =ﾀﾞﾌﾞﾙｽ入力!M40 -> 0 | H24: ． | I24: =ﾀﾞﾌﾞﾙｽ入力!N40 -> 0 | J24: =ﾀﾞﾌﾞﾙｽ入力!O40 -> 0 | M24: =ﾀﾞﾌﾞﾙｽ入力!P40 -> 0 | N24: =ﾀﾞﾌﾞﾙｽ入力!Q40 -> 0 | O24: =ﾀﾞﾌﾞﾙｽ入力!R40 -> 0 | P24: =ﾀﾞﾌﾞﾙｽ入力!S40 -> 0
B25: =ﾀﾞﾌﾞﾙｽ入力!G40 -> 0 | C25: =ﾀﾞﾌﾞﾙｽ入力!H40 -> 0 | M25: =ﾀﾞﾌﾞﾙｽ入力!V40 ->  | N25: =ﾀﾞﾌﾞﾙｽ入力!W40 ->  | O25: =ﾀﾞﾌﾞﾙｽ入力!X40 ->  | P25: =ﾀﾞﾌﾞﾙｽ入力!Y40 -> 
A26: 4 | B26: =ﾀﾞﾌﾞﾙｽ入力!I41 -> 0 | C26: =ﾀﾞﾌﾞﾙｽ入力!J41 -> 0 | D26: =ﾀﾞﾌﾞﾙｽ入力!K41 -> 0 | E26: =ﾀﾞﾌﾞﾙｽ入力!L41 -> 0 | F26: ． | G26: =ﾀﾞﾌﾞﾙｽ入力!M41 -> 0 | H26: ． | I26: =ﾀﾞﾌﾞﾙｽ入力!N41 -> 0 | J26: =ﾀﾞﾌﾞﾙｽ入力!O41 -> 0 | M26: =ﾀﾞﾌﾞﾙｽ入力!P41 -> 0 | N26: =ﾀﾞﾌﾞﾙｽ入力!Q41 -> 0 | O26: =ﾀﾞﾌﾞﾙｽ入力!R41 -> 0 | P26: =ﾀﾞﾌﾞﾙｽ入力!S41 -> 0 | Q26: =ﾀﾞﾌﾞﾙｽ入力!Z41 -> 
B27: =ﾀﾞﾌﾞﾙｽ入力!G41 -> 0 | C27: =ﾀﾞﾌﾞﾙｽ入力!H41 -> 0 | M27: =ﾀﾞﾌﾞﾙｽ入力!V41 ->  | N27: =ﾀﾞﾌﾞﾙｽ入力!W41 ->  | O27: =ﾀﾞﾌﾞﾙｽ入力!X41 ->  | P27: =ﾀﾞﾌﾞﾙｽ入力!Y41 -> 
B28: =ﾀﾞﾌﾞﾙｽ入力!I42 -> 0 | C28: =ﾀﾞﾌﾞﾙｽ入力!J42 -> 0 | D28: =ﾀﾞﾌﾞﾙｽ入力!K42 -> 0 | E28: =ﾀﾞﾌﾞﾙｽ入力!L42 -> 0 | F28: ． | G28: =ﾀﾞﾌﾞﾙｽ入力!M42 -> 0 | H28: ． | I28: =ﾀﾞﾌﾞﾙｽ入力!N42 -> 0 | J28: =ﾀﾞﾌﾞﾙｽ入力!O42 -> 0 | M28: =ﾀﾞﾌﾞﾙｽ入力!P42 -> 0 | N28: =ﾀﾞﾌﾞﾙｽ入力!Q42 -> 0 | O28: =ﾀﾞﾌﾞﾙｽ入力!R42 -> 0 | P28: =ﾀﾞﾌﾞﾙｽ入力!S42 -> 0
B29: =ﾀﾞﾌﾞﾙｽ入力!G42 -> 0 | C29: =ﾀﾞﾌﾞﾙｽ入力!H42 -> 0 | M29: =ﾀﾞﾌﾞﾙｽ入力!V42 ->  | N29: =ﾀﾞﾌﾞﾙｽ入力!W42 ->  | O29: =ﾀﾞﾌﾞﾙｽ入力!X42 ->  | P29: =ﾀﾞﾌﾞﾙｽ入力!Y42 -> 
A30: 5 | B30: =ﾀﾞﾌﾞﾙｽ入力!I43 -> 0 | C30: =ﾀﾞﾌﾞﾙｽ入力!J43 -> 0 | D30: =ﾀﾞﾌﾞﾙｽ入力!K43 -> 0 | E30: =ﾀﾞﾌﾞﾙｽ入力!L43 -> 0 | F30: ． | G30: =ﾀﾞﾌﾞﾙｽ入力!M43 -> 0 | H30: ． | I30: =ﾀﾞﾌﾞﾙｽ入力!N43 -> 0 | J30: =ﾀﾞﾌﾞﾙｽ入力!O43 -> 0 | M30: =ﾀﾞﾌﾞﾙｽ入力!P43 -> 0 | N30: =ﾀﾞﾌﾞﾙｽ入力!Q43 -> 0 | O30: =ﾀﾞﾌﾞﾙｽ入力!R43 -> 0 | P30: =ﾀﾞﾌﾞﾙｽ入力!S43 -> 0 | Q30: =ﾀﾞﾌﾞﾙｽ入力!Z43 -> 
B31: =ﾀﾞﾌﾞﾙｽ入力!G43 -> 0 | C31: =ﾀﾞﾌﾞﾙｽ入力!H43 -> 0 | M31: =ﾀﾞﾌﾞﾙｽ入力!V43 ->  | N31: =ﾀﾞﾌﾞﾙｽ入力!W43 ->  | O31: =ﾀﾞﾌﾞﾙｽ入力!X43 ->  | P31: =ﾀﾞﾌﾞﾙｽ入力!Y43 -> 
B32: =ﾀﾞﾌﾞﾙｽ入力!I44 -> 0 | C32: =ﾀﾞﾌﾞﾙｽ入力!J44 -> 0 | D32: =ﾀﾞﾌﾞﾙｽ入力!K44 -> 0 | E32: =ﾀﾞﾌﾞﾙｽ入力!L44 -> 0 | F32: ． | G32: =ﾀﾞﾌﾞﾙｽ入力!M44 -> 0 | H32: ． | I32: =ﾀﾞﾌﾞﾙｽ入力!N44 -> 0 | J32: =ﾀﾞﾌﾞﾙｽ入力!O44 -> 0 | M32: =ﾀﾞﾌﾞﾙｽ入力!P44 -> 0 | N32: =ﾀﾞﾌﾞﾙｽ入力!Q44 -> 0 | O32: =ﾀﾞﾌﾞﾙｽ入力!R44 -> 0 | P32: =ﾀﾞﾌﾞﾙｽ入力!S44 -> 0
B33: =ﾀﾞﾌﾞﾙｽ入力!G44 -> 0 | C33: =ﾀﾞﾌﾞﾙｽ入力!H44 -> 0 | M33: =ﾀﾞﾌﾞﾙｽ入力!V44 ->  | N33: =ﾀﾞﾌﾞﾙｽ入力!W44 ->  | O33: =ﾀﾞﾌﾞﾙｽ入力!X44 ->  | P33: =ﾀﾞﾌﾞﾙｽ入力!Y44 -> 
A34: 6 | B34: =ﾀﾞﾌﾞﾙｽ入力!I45 -> 0 | C34: =ﾀﾞﾌﾞﾙｽ入力!J45 -> 0 | D34: =ﾀﾞﾌﾞﾙｽ入力!K45 -> 0 | E34: =ﾀﾞﾌﾞﾙｽ入力!L45 -> 0 | F34: ． | G34: =ﾀﾞﾌﾞﾙｽ入力!M45 -> 0 | H34: ． | I34: =ﾀﾞﾌﾞﾙｽ入力!N45 -> 0 | J34: =ﾀﾞﾌﾞﾙｽ入力!O45 -> 0 | M34: =ﾀﾞﾌﾞﾙｽ入力!P45 -> 0 | N34: =ﾀﾞﾌﾞﾙｽ入力!Q45 -> 0 | O34: =ﾀﾞﾌﾞﾙｽ入力!R45 -> 0 | P34: =ﾀﾞﾌﾞﾙｽ入力!S45 -> 0 | Q34: =ﾀﾞﾌﾞﾙｽ入力!Z45 -> 
B35: =ﾀﾞﾌﾞﾙｽ入力!G45 -> 0 | C35: =ﾀﾞﾌﾞﾙｽ入力!H45 -> 0 | M35: =ﾀﾞﾌﾞﾙｽ入力!V45 ->  | N35: =ﾀﾞﾌﾞﾙｽ入力!W45 ->  | O35: =ﾀﾞﾌﾞﾙｽ入力!X45 ->  | P35: =ﾀﾞﾌﾞﾙｽ入力!Y45 -> 
B36: =ﾀﾞﾌﾞﾙｽ入力!I46 -> 0 | C36: =ﾀﾞﾌﾞﾙｽ入力!J46 -> 0 | D36: =ﾀﾞﾌﾞﾙｽ入力!K46 -> 0 | E36: =ﾀﾞﾌﾞﾙｽ入力!L46 -> 0 | F36: ． | G36: =ﾀﾞﾌﾞﾙｽ入力!M46 -> 0 | H36: ． | I36: =ﾀﾞﾌﾞﾙｽ入力!N46 -> 0 | J36: =ﾀﾞﾌﾞﾙｽ入力!O46 -> 0 | M36: =ﾀﾞﾌﾞﾙｽ入力!P46 -> 0 | N36: =ﾀﾞﾌﾞﾙｽ入力!Q46 -> 0 | O36: =ﾀﾞﾌﾞﾙｽ入力!R46 -> 0 | P36: =ﾀﾞﾌﾞﾙｽ入力!S46 -> 0
B37: =ﾀﾞﾌﾞﾙｽ入力!G46 -> 0 | C37: =ﾀﾞﾌﾞﾙｽ入力!H46 -> 0 | M37: =ﾀﾞﾌﾞﾙｽ入力!V46 ->  | N37: =ﾀﾞﾌﾞﾙｽ入力!W46 ->  | O37: =ﾀﾞﾌﾞﾙｽ入力!X46 ->  | P37: =ﾀﾞﾌﾞﾙｽ入力!Y46 -> 
A38: 7 | B38: =ﾀﾞﾌﾞﾙｽ入力!I47 -> 0 | C38: =ﾀﾞﾌﾞﾙｽ入力!J47 -> 0 | D38: =ﾀﾞﾌﾞﾙｽ入力!K47 -> 0 | E38: =ﾀﾞﾌﾞﾙｽ入力!L47 -> 0 | F38: ． | G38: =ﾀﾞﾌﾞﾙｽ入力!M47 -> 0 | H38: ． | I38: =ﾀﾞﾌﾞﾙｽ入力!N47 -> 0 | J38: =ﾀﾞﾌﾞﾙｽ入力!O47 -> 0 | M38: =ﾀﾞﾌﾞﾙｽ入力!P47 -> 0 | N38: =ﾀﾞﾌﾞﾙｽ入力!Q47 -> 0 | O38: =ﾀﾞﾌﾞﾙｽ入力!R47 -> 0 | P38: =ﾀﾞﾌﾞﾙｽ入力!S47 -> 0 | Q38: =ﾀﾞﾌﾞﾙｽ入力!Z47 -> 
B39: =ﾀﾞﾌﾞﾙｽ入力!G47 -> 0 | C39: =ﾀﾞﾌﾞﾙｽ入力!H47 -> 0 | M39: =ﾀﾞﾌﾞﾙｽ入力!V47 ->  | N39: =ﾀﾞﾌﾞﾙｽ入力!W47 ->  | O39: =ﾀﾞﾌﾞﾙｽ入力!X47 ->  | P39: =ﾀﾞﾌﾞﾙｽ入力!Y47 -> 
B40: =ﾀﾞﾌﾞﾙｽ入力!I48 -> 0 | C40: =ﾀﾞﾌﾞﾙｽ入力!J48 -> 0 | D40: =ﾀﾞﾌﾞﾙｽ入力!K48 -> 0 | E40: =ﾀﾞﾌﾞﾙｽ入力!L48 -> 0 | F40: ． | G40: =ﾀﾞﾌﾞﾙｽ入力!M48 -> 0 | H40: ． | I40: =ﾀﾞﾌﾞﾙｽ入力!N48 -> 0 | J40: =ﾀﾞﾌﾞﾙｽ入力!O48 -> 0 | M40: =ﾀﾞﾌﾞﾙｽ入力!P48 -> 0 | N40: =ﾀﾞﾌﾞﾙｽ入力!Q48 -> 0 | O40: =ﾀﾞﾌﾞﾙｽ入力!R48 -> 0 | P40: =ﾀﾞﾌﾞﾙｽ入力!S48 -> 0
B41: =ﾀﾞﾌﾞﾙｽ入力!G48 -> 0 | C41: =ﾀﾞﾌﾞﾙｽ入力!H48 -> 0 | M41: =ﾀﾞﾌﾞﾙｽ入力!V48 ->  | N41: =ﾀﾞﾌﾞﾙｽ入力!W48 ->  | O41: =ﾀﾞﾌﾞﾙｽ入力!X48 ->  | P41: =ﾀﾞﾌﾞﾙｽ入力!Y48 -> 
A42: 8 | B42: =ﾀﾞﾌﾞﾙｽ入力!I49 -> 0 | C42: =ﾀﾞﾌﾞﾙｽ入力!J49 -> 0 | D42: =ﾀﾞﾌﾞﾙｽ入力!K49 -> 0 | E42: =ﾀﾞﾌﾞﾙｽ入力!L49 -> 0 | F42: ． | G42: =ﾀﾞﾌﾞﾙｽ入力!M49 -> 0 | H42: ． | I42: =ﾀﾞﾌﾞﾙｽ入力!N49 -> 0 | J42: =ﾀﾞﾌﾞﾙｽ入力!O49 -> 0 | M42: =ﾀﾞﾌﾞﾙｽ入力!P49 -> 0 | N42: =ﾀﾞﾌﾞﾙｽ入力!Q49 -> 0 | O42: =ﾀﾞﾌﾞﾙｽ入力!R49 -> 0 | P42: =ﾀﾞﾌﾞﾙｽ入力!S49 -> 0 | Q42: =ﾀﾞﾌﾞﾙｽ入力!Z49 -> 
B43: =ﾀﾞﾌﾞﾙｽ入力!G49 -> 0 | C43: =ﾀﾞﾌﾞﾙｽ入力!H49 -> 0 | M43: =ﾀﾞﾌﾞﾙｽ入力!V49 ->  | N43: =ﾀﾞﾌﾞﾙｽ入力!W49 ->  | O43: =ﾀﾞﾌﾞﾙｽ入力!X49 ->  | P43: =ﾀﾞﾌﾞﾙｽ入力!Y49 -> 
B44: =ﾀﾞﾌﾞﾙｽ入力!I50 -> 0 | C44: =ﾀﾞﾌﾞﾙｽ入力!J50 -> 0 | D44: =ﾀﾞﾌﾞﾙｽ入力!K50 -> 0 | E44: =ﾀﾞﾌﾞﾙｽ入力!L50 -> 0 | F44: ． | G44: =ﾀﾞﾌﾞﾙｽ入力!M50 -> 0 | H44: ． | I44: =ﾀﾞﾌﾞﾙｽ入力!N50 -> 0 | J44: =ﾀﾞﾌﾞﾙｽ入力!O50 -> 0 | M44: =ﾀﾞﾌﾞﾙｽ入力!P50 -> 0 | N44: =ﾀﾞﾌﾞﾙｽ入力!Q50 -> 0 | O44: =ﾀﾞﾌﾞﾙｽ入力!R50 -> 0 | P44: =ﾀﾞﾌﾞﾙｽ入力!S50 -> 0
B45: =ﾀﾞﾌﾞﾙｽ入力!G50 -> 0 | C45: =ﾀﾞﾌﾞﾙｽ入力!H50 -> 0 | M45: =ﾀﾞﾌﾞﾙｽ入力!V50 ->  | N45: =ﾀﾞﾌﾞﾙｽ入力!W50 ->  | O45: =ﾀﾞﾌﾞﾙｽ入力!X50 ->  | P45: =ﾀﾞﾌﾞﾙｽ入力!Y50 -> 

Sheet ﾀﾞﾌﾞﾙｽ印刷２
A2: =ﾀﾞﾌﾞﾙｽ入力!$C$20 -> 0 | J2: 大会 | M2: =ﾀﾞﾌﾞﾙｽ入力!$C$22&"個人戦申込書" -> 個人戦申込書 | P2: ="("&ﾀﾞﾌﾞﾙｽ入力!$C$21 -> ( | Q2: 地区校)
A4: 大会会長 様 | J4: 学 校 名 | L4: =ﾀﾞﾌﾞﾙｽ入力!C23 -> 0 | P4: (略称) | Q4: =ﾀﾞﾌﾞﾙｽ入力!C24 -> 0
J5: 代 表 者 | L5: =ﾀﾞﾌﾞﾙｽ入力!C25 -> 0
A6: ベンチ入り指導者名（区分は「当」「外」） | J6: 住 所 | L6: ="〒"&ﾀﾞﾌﾞﾙｽ入力!C26&" "&ﾀﾞﾌﾞﾙｽ入力!C27 -> 〒
A7: 1 | B7: =ﾀﾞﾌﾞﾙｽ入力!F25 -> 0 | J7: 連 絡 先 | L7: ℡ | M7: =ﾀﾞﾌﾞﾙｽ入力!C28 -> 0
A8: 2 | B8: =ﾀﾞﾌﾞﾙｽ入力!F26 -> 0 | J8: 緊急連絡先 | L8: ℡ | M8: =ﾀﾞﾌﾞﾙｽ入力!C29 -> 0
A9: 3 | B9: =ﾀﾞﾌﾞﾙｽ入力!F27 -> 0 | J9: 記載責任者 | L9: =ﾀﾞﾌﾞﾙｽ入力!C30 -> 0 | Q9: ㊞
A10: 4 | B10: =ﾀﾞﾌﾞﾙｽ入力!F28 -> 0 | J10: 引率責任者 | L10: =ﾀﾞﾌﾞﾙｽ入力!C31 -> 0 | Q10: ㊞
A11: ※申込ペア数を超えない範囲で登録可能（４名まで）。
A12: 申込順 | B12: 選手氏名 | D12: 学 年 | E12: 生年月日 | J12: 会員登録番号 | M12: 備 考 欄 ※大会名とポイントを記入する。
M13: =ﾀﾞﾌﾞﾙｽ入力!$P$32 -> 県ｲﾝﾄﾞｱ | N13: =ﾀﾞﾌﾞﾙｽ入力!$Q$32 -> HJS | O13: =ﾀﾞﾌﾞﾙｽ入力!$R$32 -> 春地区 | P13: =ﾀﾞﾌﾞﾙｽ入力!$S$32 -> 0 | Q13: 合計
A14: 9 | B14: =ﾀﾞﾌﾞﾙｽ入力!I51 -> 0 | C14: =ﾀﾞﾌﾞﾙｽ入力!J51 -> 0 | D14: =ﾀﾞﾌﾞﾙｽ入力!K51 -> 0 | E14: =ﾀﾞﾌﾞﾙｽ入力!L51 -> 0 | F14: ． | G14: =ﾀﾞﾌﾞﾙｽ入力!M51 -> 0 | H14: ． | I14: =ﾀﾞﾌﾞﾙｽ入力!N51 -> 0 | J14: =ﾀﾞﾌﾞﾙｽ入力!O51 -> 0 | M14: =ﾀﾞﾌﾞﾙｽ入力!P51 -> 0 | N14: =ﾀﾞﾌﾞﾙｽ入力!Q51 -> 0 | O14: =ﾀﾞﾌﾞﾙｽ入力!R51 -> 0 | P14: =ﾀﾞﾌﾞﾙｽ入力!S51 -> 0 | Q14: =ﾀﾞﾌﾞﾙｽ入力!Z51 -> 
B15: =ﾀﾞﾌﾞﾙｽ入力!G51 -> 0 | C15: =ﾀﾞﾌﾞﾙｽ入力!H51 -> 0 | M15: =ﾀﾞﾌﾞﾙｽ入力!V51 ->  | N15: =ﾀﾞﾌﾞﾙｽ入力!W51 ->  | O15: =ﾀﾞﾌﾞﾙｽ入力!X51 ->  | P15: =ﾀﾞﾌﾞﾙｽ入力!Y51 -> 
B16: =ﾀﾞﾌﾞﾙｽ入力!I52 -> 0 | C16: =ﾀﾞﾌﾞﾙｽ入力!J52 -> 0 | D16: =ﾀﾞﾌﾞﾙｽ入力!K52 -> 0 | E16: =ﾀﾞﾌﾞﾙｽ入力!L52 -> 0 | F16: ． | G16: =ﾀﾞﾌﾞﾙｽ入力!M52 -> 0 | H16: ． | I16: =ﾀﾞﾌﾞﾙｽ入力!N52 -> 0 | J16: =ﾀﾞﾌﾞﾙｽ入力!O52 -> 0 | M16: =ﾀﾞﾌﾞﾙｽ入力!P52 -> 0 | N16: =ﾀﾞﾌﾞﾙｽ入力!Q52 -> 0 | O16: =ﾀﾞﾌﾞﾙｽ入力!R52 -> 0 | P16: =ﾀﾞﾌﾞﾙｽ入力!S52 -> 0
B17: =ﾀﾞﾌﾞﾙｽ入力!G52 -> 0 | C17: =ﾀﾞﾌﾞﾙｽ入力!H52 -> 0 | M17: =ﾀﾞﾌﾞﾙｽ入力!V52 ->  | N17: =ﾀﾞﾌﾞﾙｽ入力!W52 ->  | O17: =ﾀﾞﾌﾞﾙｽ入力!X52 ->  | P17: =ﾀﾞﾌﾞﾙｽ入力!Y52 -> 
A18: 10 | B18: =ﾀﾞﾌﾞﾙｽ入力!I53 -> 0 | C18: =ﾀﾞﾌﾞﾙｽ入力!J53 -> 0 | D18: =ﾀﾞﾌﾞﾙｽ入力!K53 -> 0 | E18: =ﾀﾞﾌﾞﾙｽ入力!L53 -> 0 | F18: ． | G18: =ﾀﾞﾌﾞﾙｽ入力!M53 -> 0 | H18: ． | I18: =ﾀﾞﾌﾞﾙｽ入力!N53 -> 0 | J18: =ﾀﾞﾌﾞﾙｽ入力!O53 -> 0 | M18: =ﾀﾞﾌﾞﾙｽ入力!P53 -> 0 | N18: =ﾀﾞﾌﾞﾙｽ入力!Q53 -> 0 | O18: =ﾀﾞﾌﾞﾙｽ入力!R53 -> 0 | P18: =ﾀﾞﾌﾞﾙｽ入力!S53 -> 0 | Q18: =ﾀﾞﾌﾞﾙｽ入力!Z53 -> 
B19: =ﾀﾞﾌﾞﾙｽ入力!G53 -> 0 | C19: =ﾀﾞﾌﾞﾙｽ入力!H53 -> 0 | M19: =ﾀﾞﾌﾞﾙｽ入力!V53 ->  | N19: =ﾀﾞﾌﾞﾙｽ入力!W53 ->  | O19: =ﾀﾞﾌﾞﾙｽ入力!X53 ->  | P19: =ﾀﾞﾌﾞﾙｽ入力!Y53 -> 
B20: =ﾀﾞﾌﾞﾙｽ入力!I54 -> 0 | C20: =ﾀﾞﾌﾞﾙｽ入力!J54 -> 0 | D20: =ﾀﾞﾌﾞﾙｽ入力!K54 -> 0 | E20: =ﾀﾞﾌﾞﾙｽ入力!L54 -> 0 | F20: ． | G20: =ﾀﾞﾌﾞﾙｽ入力!M54 -> 0 | H20: ． | I20: =ﾀﾞﾌﾞﾙｽ入力!N54 -> 0 | J20: =ﾀﾞﾌﾞﾙｽ入力!O54 -> 0 | M20: =ﾀﾞﾌﾞﾙｽ入力!P54 -> 0 | N20: =ﾀﾞﾌﾞﾙｽ入力!Q54 -> 0 | O20: =ﾀﾞﾌﾞﾙｽ入力!R54 -> 0 | P20: =ﾀﾞﾌﾞﾙｽ入力!S54 -> 0
B21: =ﾀﾞﾌﾞﾙｽ入力!G54 -> 0 | C21: =ﾀﾞﾌﾞﾙｽ入力!H54 -> 0 | M21: =ﾀﾞﾌﾞﾙｽ入力!V54 ->  | N21: =ﾀﾞﾌﾞﾙｽ入力!W54 ->  | O21: =ﾀﾞﾌﾞﾙｽ入力!X54 ->  | P21: =ﾀﾞﾌﾞﾙｽ入力!Y54 -> 
A22: 11 | B22: =ﾀﾞﾌﾞﾙｽ入力!I55 -> 0 | C22: =ﾀﾞﾌﾞﾙｽ入力!J55 -> 0 | D22: =ﾀﾞﾌﾞﾙｽ入力!K55 -> 0 | E22: =ﾀﾞﾌﾞﾙｽ入力!L55 -> 0 | F22: ． | G22: =ﾀﾞﾌﾞﾙｽ入力!M55 -> 0 | H22: ． | I22: =ﾀﾞﾌﾞﾙｽ入力!N55 -> 0 | J22: =ﾀﾞﾌﾞﾙｽ入力!O55 -> 0 | M22: =ﾀﾞﾌﾞﾙｽ入力!P55 -> 0 | N22: =ﾀﾞﾌﾞﾙｽ入力!Q55 -> 0 | O22: =ﾀﾞﾌﾞﾙｽ入力!R55 -> 0 | P22: =ﾀﾞﾌﾞﾙｽ入力!S55 -> 0 | Q22: =ﾀﾞﾌﾞﾙｽ入力!Z55 -> 
B23: =ﾀﾞﾌﾞﾙｽ入力!G55 -> 0 | C23: =ﾀﾞﾌﾞﾙｽ入力!H55 -> 0 | M23: =ﾀﾞﾌﾞﾙｽ入力!V55 ->  | N23: =ﾀﾞﾌﾞﾙｽ入力!W55 ->  | O23: =ﾀﾞﾌﾞﾙｽ入力!X55 ->  | P23: =ﾀﾞﾌﾞﾙｽ入力!Y55 -> 
B24: =ﾀﾞﾌﾞﾙｽ入力!I56 -> 0 | C24: =ﾀﾞﾌﾞﾙｽ入力!J56 -> 0 | D24: =ﾀﾞﾌﾞﾙｽ入力!K56 -> 0 | E24: =ﾀﾞﾌﾞﾙｽ入力!L56 -> 0 | F24: ． | G24: =ﾀﾞﾌﾞﾙｽ入力!M56 -> 0 | H24: ． | I24: =ﾀﾞﾌﾞﾙｽ入力!N56 -> 0 | J24: =ﾀﾞﾌﾞﾙｽ入力!O56 -> 0 | M24: =ﾀﾞﾌﾞﾙｽ入力!P56 -> 0 | N24: =ﾀﾞﾌﾞﾙｽ入力!Q56 -> 0 | O24: =ﾀﾞﾌﾞﾙｽ入力!R56 -> 0 | P24: =ﾀﾞﾌﾞﾙｽ入力!S56 -> 0
B25: =ﾀﾞﾌﾞﾙｽ入力!G56 -> 0 | C25: =ﾀﾞﾌﾞﾙｽ入力!H56 -> 0 | M25: =ﾀﾞﾌﾞﾙｽ入力!V56 ->  | N25: =ﾀﾞﾌﾞﾙｽ入力!W56 ->  | O25: =ﾀﾞﾌﾞﾙｽ入力!X56 ->  | P25: =ﾀﾞﾌﾞﾙｽ入力!Y56 -> 
A26: 12 | B26: =ﾀﾞﾌﾞﾙｽ入力!I57 -> 0 | C26: =ﾀﾞﾌﾞﾙｽ入力!J57 -> 0 | D26: =ﾀﾞﾌﾞﾙｽ入力!K57 -> 0 | E26: =ﾀﾞﾌﾞﾙｽ入力!L57 -> 0 | F26: ． | G26: =ﾀﾞﾌﾞﾙｽ入力!M57 -> 0 | H26: ． | I26: =ﾀﾞﾌﾞﾙｽ入力!N57 -> 0 | J26: =ﾀﾞﾌﾞﾙｽ入力!O57 -> 0 | M26: =ﾀﾞﾌﾞﾙｽ入力!P57 -> 0 | N26: =ﾀﾞﾌﾞﾙｽ入力!Q57 -> 0 | O26: =ﾀﾞﾌﾞﾙｽ入力!R57 -> 0 | P26: =ﾀﾞﾌﾞﾙｽ入力!S57 -> 0 | Q26: =ﾀﾞﾌﾞﾙｽ入力!Z57 -> 
B27: =ﾀﾞﾌﾞﾙｽ入力!G57 -> 0 | C27: =ﾀﾞﾌﾞﾙｽ入力!H57 -> 0 | M27: =ﾀﾞﾌﾞﾙｽ入力!V57 ->  | N27: =ﾀﾞﾌﾞﾙｽ入力!W57 ->  | O27: =ﾀﾞﾌﾞﾙｽ入力!X57 ->  | P27: =ﾀﾞﾌﾞﾙｽ入力!Y57 -> 
B28: =ﾀﾞﾌﾞﾙｽ入力!I58 -> 0 | C28: =ﾀﾞﾌﾞﾙｽ入力!J58 -> 0 | D28: =ﾀﾞﾌﾞﾙｽ入力!K58 -> 0 | E28: =ﾀﾞﾌﾞﾙｽ入力!L58 -> 0 | F28: ． | G28: =ﾀﾞﾌﾞﾙｽ入力!M58 -> 0 | H28: ． | I28: =ﾀﾞﾌﾞﾙｽ入力!N58 -> 0 | J28: =ﾀﾞﾌﾞﾙｽ入力!O58 -> 0 | M28: =ﾀﾞﾌﾞﾙｽ入力!P58 -> 0 | N28: =ﾀﾞﾌﾞﾙｽ入力!Q58 -> 0 | O28: =ﾀﾞﾌﾞﾙｽ入力!R58 -> 0 | P28: =ﾀﾞﾌﾞﾙｽ入力!S58 -> 0
B29: =ﾀﾞﾌﾞﾙｽ入力!G58 -> 0 | C29: =ﾀﾞﾌﾞﾙｽ入力!H58 -> 0 | M29: =ﾀﾞﾌﾞﾙｽ入力!V58 ->  | N29: =ﾀﾞﾌﾞﾙｽ入力!W58 ->  | O29: =ﾀﾞﾌﾞﾙｽ入力!X58 ->  | P29: =ﾀﾞﾌﾞﾙｽ入力!Y58 -> 
A30: 13 | B30: =ﾀﾞﾌﾞﾙｽ入力!I59 -> 0 | C30: =ﾀﾞﾌﾞﾙｽ入力!J59 -> 0 | D30: =ﾀﾞﾌﾞﾙｽ入力!K59 -> 0 | E30: =ﾀﾞﾌﾞﾙｽ入力!L59 -> 0 | F30: ． | G30: =ﾀﾞﾌﾞﾙｽ入力!M59 -> 0 | H30: ． | I30: =ﾀﾞﾌﾞﾙｽ入力!N59 -> 0 | J30: =ﾀﾞﾌﾞﾙｽ入力!O59 -> 0 | M30: =ﾀﾞﾌﾞﾙｽ入力!P59 -> 0 | N30: =ﾀﾞﾌﾞﾙｽ入力!Q59 -> 0 | O30: =ﾀﾞﾌﾞﾙｽ入力!R59 -> 0 | P30: =ﾀﾞﾌﾞﾙｽ入力!S59 -> 0 | Q30: =ﾀﾞﾌﾞﾙｽ入力!Z59 -> 
B31: =ﾀﾞﾌﾞﾙｽ入力!G59 -> 0 | C31: =ﾀﾞﾌﾞﾙｽ入力!H59 -> 0 | M31: =ﾀﾞﾌﾞﾙｽ入力!V59 ->  | N31: =ﾀﾞﾌﾞﾙｽ入力!W59 ->  | O31: =ﾀﾞﾌﾞﾙｽ入力!X59 ->  | P31: =ﾀﾞﾌﾞﾙｽ入力!Y59 -> 
B32: =ﾀﾞﾌﾞﾙｽ入力!I60 -> 0 | C32: =ﾀﾞﾌﾞﾙｽ入力!J60 -> 0 | D32: =ﾀﾞﾌﾞﾙｽ入力!K60 -> 0 | E32: =ﾀﾞﾌﾞﾙｽ入力!L60 -> 0 | F32: ． | G32: =ﾀﾞﾌﾞﾙｽ入力!M60 -> 0 | H32: ． | I32: =ﾀﾞﾌﾞﾙｽ入力!N60 -> 0 | J32: =ﾀﾞﾌﾞﾙｽ入力!O60 -> 0 | M32: =ﾀﾞﾌﾞﾙｽ入力!P60 -> 0 | N32: =ﾀﾞﾌﾞﾙｽ入力!Q60 -> 0 | O32: =ﾀﾞﾌﾞﾙｽ入力!R60 -> 0 | P32: =ﾀﾞﾌﾞﾙｽ入力!S60 -> 0
B33: =ﾀﾞﾌﾞﾙｽ入力!G60 -> 0 | C33: =ﾀﾞﾌﾞﾙｽ入力!H60 -> 0 | M33: =ﾀﾞﾌﾞﾙｽ入力!V60 ->  | N33: =ﾀﾞﾌﾞﾙｽ入力!W60 ->  | O33: =ﾀﾞﾌﾞﾙｽ入力!X60 ->  | P33: =ﾀﾞﾌﾞﾙｽ入力!Y60 -> 
A34: 14 | B34: =ﾀﾞﾌﾞﾙｽ入力!I61 -> 0 | C34: =ﾀﾞﾌﾞﾙｽ入力!J61 -> 0 | D34: =ﾀﾞﾌﾞﾙｽ入力!K61 -> 0 | E34: =ﾀﾞﾌﾞﾙｽ入力!L61 -> 0 | F34: ． | G34: =ﾀﾞﾌﾞﾙｽ入力!M61 -> 0 | H34: ． | I34: =ﾀﾞﾌﾞﾙｽ入力!N61 -> 0 | J34: =ﾀﾞﾌﾞﾙｽ入力!O61 -> 0 | M34: =ﾀﾞﾌﾞﾙｽ入力!P61 -> 0 | N34: =ﾀﾞﾌﾞﾙｽ入力!Q61 -> 0 | O34: =ﾀﾞﾌﾞﾙｽ入力!R61 -> 0 | P34: =ﾀﾞﾌﾞﾙｽ入力!S61 -> 0 | Q34: =ﾀﾞﾌﾞﾙｽ入力!Z61 -> 
B35: =ﾀﾞﾌﾞﾙｽ入力!G61 -> 0 | C35: =ﾀﾞﾌﾞﾙｽ入力!H61 -> 0 | M35: =ﾀﾞﾌﾞﾙｽ入力!V61 ->  | N35: =ﾀﾞﾌﾞﾙｽ入力!W61 ->  | O35: =ﾀﾞﾌﾞﾙｽ入力!X61 ->  | P35: =ﾀﾞﾌﾞﾙｽ入力!Y61 -> 
B36: =ﾀﾞﾌﾞﾙｽ入力!I62 -> 0 | C36: =ﾀﾞﾌﾞﾙｽ入力!J62 -> 0 | D36: =ﾀﾞﾌﾞﾙｽ入力!K62 -> 0 | E36: =ﾀﾞﾌﾞﾙｽ入力!L62 -> 0 | F36: ． | G36: =ﾀﾞﾌﾞﾙｽ入力!M62 -> 0 | H36: ． | I36: =ﾀﾞﾌﾞﾙｽ入力!N62 -> 0 | J36: =ﾀﾞﾌﾞﾙｽ入力!O62 -> 0 | M36: =ﾀﾞﾌﾞﾙｽ入力!P62 -> 0 | N36: =ﾀﾞﾌﾞﾙｽ入力!Q62 -> 0 | O36: =ﾀﾞﾌﾞﾙｽ入力!R62 -> 0 | P36: =ﾀﾞﾌﾞﾙｽ入力!S62 -> 0
B37: =ﾀﾞﾌﾞﾙｽ入力!G62 -> 0 | C37: =ﾀﾞﾌﾞﾙｽ入力!H62 -> 0 | M37: =ﾀﾞﾌﾞﾙｽ入力!V62 ->  | N37: =ﾀﾞﾌﾞﾙｽ入力!W62 ->  | O37: =ﾀﾞﾌﾞﾙｽ入力!X62 ->  | P37: =ﾀﾞﾌﾞﾙｽ入力!Y62 -> 
A38: 15 | B38: =ﾀﾞﾌﾞﾙｽ入力!I63 -> 0 | C38: =ﾀﾞﾌﾞﾙｽ入力!J63 -> 0 | D38: =ﾀﾞﾌﾞﾙｽ入力!K63 -> 0 | E38: =ﾀﾞﾌﾞﾙｽ入力!L63 -> 0 | F38: ． | G38: =ﾀﾞﾌﾞﾙｽ入力!M63 -> 0 | H38: ． | I38: =ﾀﾞﾌﾞﾙｽ入力!N63 -> 0 | J38: =ﾀﾞﾌﾞﾙｽ入力!O63 -> 0 | M38: =ﾀﾞﾌﾞﾙｽ入力!P63 -> 0 | N38: =ﾀﾞﾌﾞﾙｽ入力!Q63 -> 0 | O38: =ﾀﾞﾌﾞﾙｽ入力!R63 -> 0 | P38: =ﾀﾞﾌﾞﾙｽ入力!S63 -> 0 | Q38: =ﾀﾞﾌﾞﾙｽ入力!Z63 -> 
B39: =ﾀﾞﾌﾞﾙｽ入力!G63 -> 0 | C39: =ﾀﾞﾌﾞﾙｽ入力!H63 -> 0 | M39: =ﾀﾞﾌﾞﾙｽ入力!V63 ->  | N39: =ﾀﾞﾌﾞﾙｽ入力!W63 ->  | O39: =ﾀﾞﾌﾞﾙｽ入力!X63 ->  | P39: =ﾀﾞﾌﾞﾙｽ入力!Y63 -> 
B40: =ﾀﾞﾌﾞﾙｽ入力!I64 -> 0 | C40: =ﾀﾞﾌﾞﾙｽ入力!J64 -> 0 | D40: =ﾀﾞﾌﾞﾙｽ入力!K64 -> 0 | E40: =ﾀﾞﾌﾞﾙｽ入力!L64 -> 0 | F40: ． | G40: =ﾀﾞﾌﾞﾙｽ入力!M64 -> 0 | H40: ． | I40: =ﾀﾞﾌﾞﾙｽ入力!N64 -> 0 | J40: =ﾀﾞﾌﾞﾙｽ入力!O64 -> 0 | M40: =ﾀﾞﾌﾞﾙｽ入力!P64 -> 0 | N40: =ﾀﾞﾌﾞﾙｽ入力!Q64 -> 0 | O40: =ﾀﾞﾌﾞﾙｽ入力!R64 -> 0 | P40: =ﾀﾞﾌﾞﾙｽ入力!S64 -> 0
B41: =ﾀﾞﾌﾞﾙｽ入力!G64 -> 0 | C41: =ﾀﾞﾌﾞﾙｽ入力!H64 -> 0 | M41: =ﾀﾞﾌﾞﾙｽ入力!V64 ->  | N41: =ﾀﾞﾌﾞﾙｽ入力!W64 ->  | O41: =ﾀﾞﾌﾞﾙｽ入力!X64 ->  | P41: =ﾀﾞﾌﾞﾙｽ入力!Y64 -> 
A42: 16 | B42: =ﾀﾞﾌﾞﾙｽ入力!I65 -> 0 | C42: =ﾀﾞﾌﾞﾙｽ入力!J65 -> 0 | D42: =ﾀﾞﾌﾞﾙｽ入力!K65 -> 0 | E42: =ﾀﾞﾌﾞﾙｽ入力!L65 -> 0 | F42: ． | G42: =ﾀﾞﾌﾞﾙｽ入力!M65 -> 0 | H42: ． | I42: =ﾀﾞﾌﾞﾙｽ入力!N65 -> 0 | J42: =ﾀﾞﾌﾞﾙｽ入力!O65 -> 0 | M42: =ﾀﾞﾌﾞﾙｽ入力!P65 -> 0 | N42: =ﾀﾞﾌﾞﾙｽ入力!Q65 -> 0 | O42: =ﾀﾞﾌﾞﾙｽ入力!R65 -> 0 | P42: =ﾀﾞﾌﾞﾙｽ入力!S65 -> 0 | Q42: =ﾀﾞﾌﾞﾙｽ入力!Z65 -> 
B43: =ﾀﾞﾌﾞﾙｽ入力!G65 -> 0 | C43: =ﾀﾞﾌﾞﾙｽ入力!H65 -> 0 | M43: =ﾀﾞﾌﾞﾙｽ入力!V65 ->  | N43: =ﾀﾞﾌﾞﾙｽ入力!W65 ->  | O43: =ﾀﾞﾌﾞﾙｽ入力!X65 ->  | P43: =ﾀﾞﾌﾞﾙｽ入力!Y65 -> 
B44: =ﾀﾞﾌﾞﾙｽ入力!I66 -> 0 | C44: =ﾀﾞﾌﾞﾙｽ入力!J66 -> 0 | D44: =ﾀﾞﾌﾞﾙｽ入力!K66 -> 0 | E44: =ﾀﾞﾌﾞﾙｽ入力!L66 -> 0 | F44: ． | G44: =ﾀﾞﾌﾞﾙｽ入力!M66 -> 0 | H44: ． | I44: =ﾀﾞﾌﾞﾙｽ入力!N66 -> 0 | J44: =ﾀﾞﾌﾞﾙｽ入力!O66 -> 0 | M44: =ﾀﾞﾌﾞﾙｽ入力!P66 -> 0 | N44: =ﾀﾞﾌﾞﾙｽ入力!Q66 -> 0 | O44: =ﾀﾞﾌﾞﾙｽ入力!R66 -> 0 | P44: =ﾀﾞﾌﾞﾙｽ入力!S66 -> 0
B45: =ﾀﾞﾌﾞﾙｽ入力!G66 -> 0 | C45: =ﾀﾞﾌﾞﾙｽ入力!H66 -> 0 | M45: =ﾀﾞﾌﾞﾙｽ入力!V66 ->  | N45: =ﾀﾞﾌﾞﾙｽ入力!W66 ->  | O45: =ﾀﾞﾌﾞﾙｽ入力!X66 ->  | P45: =ﾀﾞﾌﾞﾙｽ入力!Y66 -> 

Sheet ｼﾝｸﾞﾙｽ印刷
A2: =ｼﾝｸﾞﾙｽ入力!$C$20 -> 0 | J2: 大会 | M2: =ﾀﾞﾌﾞﾙｽ入力!$C$22&"個人戦申込書" -> 個人戦申込書 | P2: ="("&ﾀﾞﾌﾞﾙｽ入力!$C$21 -> ( | Q2: 地区校)
A4: 大会会長 様 | J4: 学 校 名 | L4: =ｼﾝｸﾞﾙｽ入力!C23 -> 0 | P4: (略称) | Q4: =ｼﾝｸﾞﾙｽ入力!C24 -> 0
J5: 代 表 者 | L5: =ｼﾝｸﾞﾙｽ入力!C25 -> 0
J6: 住 所 | L6: ="〒"&ｼﾝｸﾞﾙｽ入力!C26&" "&ｼﾝｸﾞﾙｽ入力!C27 -> 〒
J7: 連 絡 先 | L7: ℡ | M7: =ｼﾝｸﾞﾙｽ入力!C28 -> 0
J8: 緊急連絡先 | L8: ℡ | M8: =ｼﾝｸﾞﾙｽ入力!C29 -> 0
J9: 記載責任者 | L9: =ｼﾝｸﾞﾙｽ入力!C30 -> 0 | Q9: ㊞
J10: 引率責任者 | L10: =ｼﾝｸﾞﾙｽ入力!C31 -> 0 | Q10: ㊞
A12: 申込順 | B12: 選手氏名 | D12: 学 年 | E12: 生年月日 | J12: 会員登録番号 | M12: 備 考 欄 ※大会名とポイントを記入する。
M13: =ﾀﾞﾌﾞﾙｽ入力!$P$32 -> 県ｲﾝﾄﾞｱ | N13: =ﾀﾞﾌﾞﾙｽ入力!$Q$32 -> HJS | O13: =ﾀﾞﾌﾞﾙｽ入力!$R$32 -> 春地区 | P13: =ﾀﾞﾌﾞﾙｽ入力!$S$32 -> 0 | Q13: 合計
A14: 1 | B14: =ｼﾝｸﾞﾙｽ入力!I28 -> 0 | C14: =ｼﾝｸﾞﾙｽ入力!J28 -> 0 | D14: =ｼﾝｸﾞﾙｽ入力!K28 -> 0 | E14: =ｼﾝｸﾞﾙｽ入力!L28 -> 0 | F14: ． | G14: =ｼﾝｸﾞﾙｽ入力!M28 -> 0 | H14: ． | I14: =ｼﾝｸﾞﾙｽ入力!N28 -> 0 | J14: =ｼﾝｸﾞﾙｽ入力!O28 -> 0 | M14: =ｼﾝｸﾞﾙｽ入力!P28 -> 0 | N14: =ｼﾝｸﾞﾙｽ入力!Q28 -> 0 | O14: =ｼﾝｸﾞﾙｽ入力!R28 -> 0 | P14: =ｼﾝｸﾞﾙｽ入力!S28 -> 0 | Q14: =ｼﾝｸﾞﾙｽ入力!Z28 -> 
B15: =ｼﾝｸﾞﾙｽ入力!G28 -> 0 | C15: =ｼﾝｸﾞﾙｽ入力!H28 -> 0 | M15: =ｼﾝｸﾞﾙｽ入力!V28 ->  | N15: =ｼﾝｸﾞﾙｽ入力!W28 ->  | O15: =ｼﾝｸﾞﾙｽ入力!X28 ->  | P15: =ｼﾝｸﾞﾙｽ入力!Y28 -> 
A16: 2 | B16: =ｼﾝｸﾞﾙｽ入力!I29 -> 0 | C16: =ｼﾝｸﾞﾙｽ入力!J29 -> 0 | D16: =ｼﾝｸﾞﾙｽ入力!K29 -> 0 | E16: =ｼﾝｸﾞﾙｽ入力!L29 -> 0 | F16: ． | G16: =ｼﾝｸﾞﾙｽ入力!M29 -> 0 | H16: ． | I16: =ｼﾝｸﾞﾙｽ入力!N29 -> 0 | J16: =ｼﾝｸﾞﾙｽ入力!O29 -> 0 | M16: =ｼﾝｸﾞﾙｽ入力!P29 -> 0 | N16: =ｼﾝｸﾞﾙｽ入力!Q29 -> 0 | O16: =ｼﾝｸﾞﾙｽ入力!R29 -> 0 | P16: =ｼﾝｸﾞﾙｽ入力!S29 -> 0 | Q16: =ｼﾝｸﾞﾙｽ入力!Z29 -> 
B17: =ｼﾝｸﾞﾙｽ入力!G29 -> 0 | C17: =ｼﾝｸﾞﾙｽ入力!H29 -> 0 | M17: =ｼﾝｸﾞﾙｽ入力!V29 ->  | N17: =ｼﾝｸﾞﾙｽ入力!W29 ->  | O17: =ｼﾝｸﾞﾙｽ入力!X29 ->  | P17: =ｼﾝｸﾞﾙｽ入力!Y29 -> 
A18: 3 | B18: =ｼﾝｸﾞﾙｽ入力!I30 -> 0 | C18: =ｼﾝｸﾞﾙｽ入力!J30 -> 0 | D18: =ｼﾝｸﾞﾙｽ入力!K30 -> 0 | E18: =ｼﾝｸﾞﾙｽ入力!L30 -> 0 | F18: ． | G18: =ｼﾝｸﾞﾙｽ入力!M30 -> 0 | H18: ． | I18: =ｼﾝｸﾞﾙｽ入力!N30 -> 0 | J18: =ｼﾝｸﾞﾙｽ入力!O30 -> 0 | M18: =ｼﾝｸﾞﾙｽ入力!P30 -> 0 | N18: =ｼﾝｸﾞﾙｽ入力!Q30 -> 0 | O18: =ｼﾝｸﾞﾙｽ入力!R30 -> 0 | P18: =ｼﾝｸﾞﾙｽ入力!S30 -> 0 | Q18: =ｼﾝｸﾞﾙｽ入力!Z30 -> 
B19: =ｼﾝｸﾞﾙｽ入力!G30 -> 0 | C19: =ｼﾝｸﾞﾙｽ入力!H30 -> 0 | M19: =ｼﾝｸﾞﾙｽ入力!V30 ->  | N19: =ｼﾝｸﾞﾙｽ入力!W30 ->  | O19: =ｼﾝｸﾞﾙｽ入力!X30 ->  | P19: =ｼﾝｸﾞﾙｽ入力!Y30 -> 
A20: 4 | B20: =ｼﾝｸﾞﾙｽ入力!I31 -> 0 | C20: =ｼﾝｸﾞﾙｽ入力!J31 -> 0 | D20: =ｼﾝｸﾞﾙｽ入力!K31 -> 0 | E20: =ｼﾝｸﾞﾙｽ入力!L31 -> 0 | F20: ． | G20: =ｼﾝｸﾞﾙｽ入力!M31 -> 0 | H20: ． | I20: =ｼﾝｸﾞﾙｽ入力!N31 -> 0 | J20: =ｼﾝｸﾞﾙｽ入力!O31 -> 0 | M20: =ｼﾝｸﾞﾙｽ入力!P31 -> 0 | N20: =ｼﾝｸﾞﾙｽ入力!Q31 -> 0 | O20: =ｼﾝｸﾞﾙｽ入力!R31 -> 0 | P20: =ｼﾝｸﾞﾙｽ入力!S31 -> 0 | Q20: =ｼﾝｸﾞﾙｽ入力!Z31 -> 
B21: =ｼﾝｸﾞﾙｽ入力!G31 -> 0 | C21: =ｼﾝｸﾞﾙｽ入力!H31 -> 0 | M21: =ｼﾝｸﾞﾙｽ入力!V31 ->  | N21: =ｼﾝｸﾞﾙｽ入力!W31 ->  | O21: =ｼﾝｸﾞﾙｽ入力!X31 ->  | P21: =ｼﾝｸﾞﾙｽ入力!Y31 -> 
A22: 5 | B22: =ｼﾝｸﾞﾙｽ入力!I32 -> 0 | C22: =ｼﾝｸﾞﾙｽ入力!J32 -> 0 | D22: =ｼﾝｸﾞﾙｽ入力!K32 -> 0 | E22: =ｼﾝｸﾞﾙｽ入力!L32 -> 0 | F22: ． | G22: =ｼﾝｸﾞﾙｽ入力!M32 -> 0 | H22: ． | I22: =ｼﾝｸﾞﾙｽ入力!N32 -> 0 | J22: =ｼﾝｸﾞﾙｽ入力!O32 -> 0 | M22: =ｼﾝｸﾞﾙｽ入力!P32 -> 0 | N22: =ｼﾝｸﾞﾙｽ入力!Q32 -> 0 | O22: =ｼﾝｸﾞﾙｽ入力!R32 -> 0 | P22: =ｼﾝｸﾞﾙｽ入力!S32 -> 0 | Q22: =ｼﾝｸﾞﾙｽ入力!Z32 -> 
B23: =ｼﾝｸﾞﾙｽ入力!G32 -> 0 | C23: =ｼﾝｸﾞﾙｽ入力!H32 -> 0 | M23: =ｼﾝｸﾞﾙｽ入力!V32 ->  | N23: =ｼﾝｸﾞﾙｽ入力!W32 ->  | O23: =ｼﾝｸﾞﾙｽ入力!X32 ->  | P23: =ｼﾝｸﾞﾙｽ入力!Y32 -> 
A24: 6 | B24: =ｼﾝｸﾞﾙｽ入力!I33 -> 0 | C24: =ｼﾝｸﾞﾙｽ入力!J33 -> 0 | D24: =ｼﾝｸﾞﾙｽ入力!K33 -> 0 | E24: =ｼﾝｸﾞﾙｽ入力!L33 -> 0 | F24: ． | G24: =ｼﾝｸﾞﾙｽ入力!M33 -> 0 | H24: ． | I24: =ｼﾝｸﾞﾙｽ入力!N33 -> 0 | J24: =ｼﾝｸﾞﾙｽ入力!O33 -> 0 | M24: =ｼﾝｸﾞﾙｽ入力!P33 -> 0 | N24: =ｼﾝｸﾞﾙｽ入力!Q33 -> 0 | O24: =ｼﾝｸﾞﾙｽ入力!R33 -> 0 | P24: =ｼﾝｸﾞﾙｽ入力!S33 -> 0 | Q24: =ｼﾝｸﾞﾙｽ入力!Z33 -> 
B25: =ｼﾝｸﾞﾙｽ入力!G33 -> 0 | C25: =ｼﾝｸﾞﾙｽ入力!H33 -> 0 | M25: =ｼﾝｸﾞﾙｽ入力!V33 ->  | N25: =ｼﾝｸﾞﾙｽ入力!W33 ->  | O25: =ｼﾝｸﾞﾙｽ入力!X33 ->  | P25: =ｼﾝｸﾞﾙｽ入力!Y33 -> 
A26: 7 | B26: =ｼﾝｸﾞﾙｽ入力!I34 -> 0 | C26: =ｼﾝｸﾞﾙｽ入力!J34 -> 0 | D26: =ｼﾝｸﾞﾙｽ入力!K34 -> 0 | E26: =ｼﾝｸﾞﾙｽ入力!L34 -> 0 | F26: ． | G26: =ｼﾝｸﾞﾙｽ入力!M34 -> 0 | H26: ． | I26: =ｼﾝｸﾞﾙｽ入力!N34 -> 0 | J26: =ｼﾝｸﾞﾙｽ入力!O34 -> 0 | M26: =ｼﾝｸﾞﾙｽ入力!P34 -> 0 | N26: =ｼﾝｸﾞﾙｽ入力!Q34 -> 0 | O26: =ｼﾝｸﾞﾙｽ入力!R34 -> 0 | P26: =ｼﾝｸﾞﾙｽ入力!S34 -> 0 | Q26: =ｼﾝｸﾞﾙｽ入力!Z34 -> 
B27: =ｼﾝｸﾞﾙｽ入力!G34 -> 0 | C27: =ｼﾝｸﾞﾙｽ入力!H34 -> 0 | M27: =ｼﾝｸﾞﾙｽ入力!V34 ->  | N27: =ｼﾝｸﾞﾙｽ入力!W34 ->  | O27: =ｼﾝｸﾞﾙｽ入力!X34 ->  | P27: =ｼﾝｸﾞﾙｽ入力!Y34 -> 
A28: 8 | B28: =ｼﾝｸﾞﾙｽ入力!I35 -> 0 | C28: =ｼﾝｸﾞﾙｽ入力!J35 -> 0 | D28: =ｼﾝｸﾞﾙｽ入力!K35 -> 0 | E28: =ｼﾝｸﾞﾙｽ入力!L35 -> 0 | F28: ． | G28: =ｼﾝｸﾞﾙｽ入力!M35 -> 0 | H28: ． | I28: =ｼﾝｸﾞﾙｽ入力!N35 -> 0 | J28: =ｼﾝｸﾞﾙｽ入力!O35 -> 0 | M28: =ｼﾝｸﾞﾙｽ入力!P35 -> 0 | N28: =ｼﾝｸﾞﾙｽ入力!Q35 -> 0 | O28: =ｼﾝｸﾞﾙｽ入力!R35 -> 0 | P28: =ｼﾝｸﾞﾙｽ入力!S35 -> 0 | Q28: =ｼﾝｸﾞﾙｽ入力!Z35 -> 
B29: =ｼﾝｸﾞﾙｽ入力!G35 -> 0 | C29: =ｼﾝｸﾞﾙｽ入力!H35 -> 0 | M29: =ｼﾝｸﾞﾙｽ入力!V35 ->  | N29: =ｼﾝｸﾞﾙｽ入力!W35 ->  | O29: =ｼﾝｸﾞﾙｽ入力!X35 ->  | P29: =ｼﾝｸﾞﾙｽ入力!Y35 -> 
A30: 9 | B30: =ｼﾝｸﾞﾙｽ入力!I36 -> 0 | C30: =ｼﾝｸﾞﾙｽ入力!J36 -> 0 | D30: =ｼﾝｸﾞﾙｽ入力!K36 -> 0 | E30: =ｼﾝｸﾞﾙｽ入力!L36 -> 0 | F30: ． | G30: =ｼﾝｸﾞﾙｽ入力!M36 -> 0 | H30: ． | I30: =ｼﾝｸﾞﾙｽ入力!N36 -> 0 | J30: =ｼﾝｸﾞﾙｽ入力!O36 -> 0 | M30: =ｼﾝｸﾞﾙｽ入力!P36 -> 0 | N30: =ｼﾝｸﾞﾙｽ入力!Q36 -> 0 | O30: =ｼﾝｸﾞﾙｽ入力!R36 -> 0 | P30: =ｼﾝｸﾞﾙｽ入力!S36 -> 0 | Q30: =ｼﾝｸﾞﾙｽ入力!Z36 -> 
B31: =ｼﾝｸﾞﾙｽ入力!G36 -> 0 | C31: =ｼﾝｸﾞﾙｽ入力!H36 -> 0 | M31: =ｼﾝｸﾞﾙｽ入力!V36 ->  | N31: =ｼﾝｸﾞﾙｽ入力!W36 ->  | O31: =ｼﾝｸﾞﾙｽ入力!X36 ->  | P31: =ｼﾝｸﾞﾙｽ入力!Y36 -> 
A32: 10 | B32: =ｼﾝｸﾞﾙｽ入力!I37 -> 0 | C32: =ｼﾝｸﾞﾙｽ入力!J37 -> 0 | D32: =ｼﾝｸﾞﾙｽ入力!K37 -> 0 | E32: =ｼﾝｸﾞﾙｽ入力!L37 -> 0 | F32: ． | G32: =ｼﾝｸﾞﾙｽ入力!M37 -> 0 | H32: ． | I32: =ｼﾝｸﾞﾙｽ入力!N37 -> 0 | J32: =ｼﾝｸﾞﾙｽ入力!O37 -> 0 | M32: =ｼﾝｸﾞﾙｽ入力!P37 -> 0 | N32: =ｼﾝｸﾞﾙｽ入力!Q37 -> 0 | O32: =ｼﾝｸﾞﾙｽ入力!R37 -> 0 | P32: =ｼﾝｸﾞﾙｽ入力!S37 -> 0 | Q32: =ｼﾝｸﾞﾙｽ入力!Z37 -> 
B33: =ｼﾝｸﾞﾙｽ入力!G37 -> 0 | C33: =ｼﾝｸﾞﾙｽ入力!H37 -> 0 | M33: =ｼﾝｸﾞﾙｽ入力!V37 ->  | N33: =ｼﾝｸﾞﾙｽ入力!W37 ->  | O33: =ｼﾝｸﾞﾙｽ入力!X37 ->  | P33: =ｼﾝｸﾞﾙｽ入力!Y37 -> 
A34: 11 | B34: =ｼﾝｸﾞﾙｽ入力!I38 -> 0 | C34: =ｼﾝｸﾞﾙｽ入力!J38 -> 0 | D34: =ｼﾝｸﾞﾙｽ入力!K38 -> 0 | E34: =ｼﾝｸﾞﾙｽ入力!L38 -> 0 | F34: ． | G34: =ｼﾝｸﾞﾙｽ入力!M38 -> 0 | H34: ． | I34: =ｼﾝｸﾞﾙｽ入力!N38 -> 0 | J34: =ｼﾝｸﾞﾙｽ入力!O38 -> 0 | M34: =ｼﾝｸﾞﾙｽ入力!P38 -> 0 | N34: =ｼﾝｸﾞﾙｽ入力!Q38 -> 0 | O34: =ｼﾝｸﾞﾙｽ入力!R38 -> 0 | P34: =ｼﾝｸﾞﾙｽ入力!S38 -> 0 | Q34: =ｼﾝｸﾞﾙｽ入力!Z38 -> 
B35: =ｼﾝｸﾞﾙｽ入力!G38 -> 0 | C35: =ｼﾝｸﾞﾙｽ入力!H38 -> 0 | M35: =ｼﾝｸﾞﾙｽ入力!V38 ->  | N35: =ｼﾝｸﾞﾙｽ入力!W38 ->  | O35: =ｼﾝｸﾞﾙｽ入力!X38 ->  | P35: =ｼﾝｸﾞﾙｽ入力!Y38 -> 
A36: 12 | B36: =ｼﾝｸﾞﾙｽ入力!I39 -> 0 | C36: =ｼﾝｸﾞﾙｽ入力!J39 -> 0 | D36: =ｼﾝｸﾞﾙｽ入力!K39 -> 0 | E36: =ｼﾝｸﾞﾙｽ入力!L39 -> 0 | F36: ． | G36: =ｼﾝｸﾞﾙｽ入力!M39 -> 0 | H36: ． | I36: =ｼﾝｸﾞﾙｽ入力!N39 -> 0 | J36: =ｼﾝｸﾞﾙｽ入力!O39 -> 0 | M36: =ｼﾝｸﾞﾙｽ入力!P39 -> 0 | N36: =ｼﾝｸﾞﾙｽ入力!Q39 -> 0 | O36: =ｼﾝｸﾞﾙｽ入力!R39 -> 0 | P36: =ｼﾝｸﾞﾙｽ入力!S39 -> 0 | Q36: =ｼﾝｸﾞﾙｽ入力!Z39 -> 
B37: =ｼﾝｸﾞﾙｽ入力!G39 -> 0 | C37: =ｼﾝｸﾞﾙｽ入力!H39 -> 0 | M37: =ｼﾝｸﾞﾙｽ入力!V39 ->  | N37: =ｼﾝｸﾞﾙｽ入力!W39 ->  | O37: =ｼﾝｸﾞﾙｽ入力!X39 ->  | P37: =ｼﾝｸﾞﾙｽ入力!Y39 -> 

Sheet 団体印刷
A2: =団体戦入力!$C$18 -> 0 | I2: 大会 | K2: =団体戦入力!$C$20&"団体戦申込書" -> 団体戦申込書 | N2: ="("&団体戦入力!$C$19 -> ( | O2: 地区校)
A4: 大会会長 様 | H4: 学 校 名 | K4: =団体戦入力!C21 -> 0 | N4: (略称) | O4: =団体戦入力!C22 -> 0
H5: 代 表 者 | K5: =団体戦入力!C23 -> 0
B6: 合同チーム学校名 | C6: =団体戦入力!G19 -> 0 | H6: 住 所 | K6: ="〒"&団体戦入力!C24&" "&団体戦入力!C25 -> 〒
C7: =団体戦入力!G20 -> 0 | H7: 連 絡 先 | K7: ℡ | L7: =団体戦入力!$C$26 -> 0
H8: 緊急連絡先 | K8: ℡ | L8: =団体戦入力!$C$27 -> 0
A9: 監督名（区分は「当」「外」） | H9: 記載責任者 | K9: =団体戦入力!C28 -> 0 | O9: ㊞
A10: =団体戦入力!F23 -> 0 | H10: 引率責任者 | K10: =団体戦入力!$C$29 -> 国島 孝志 | O10: ㊞
A12: 選手氏名 | D12: 学年 | E12: 生 年 月 日 | J12: 会員登録番号 | L12: 大会名・ポイント記入欄
A13: 1 | B13: =団体戦入力!I28 -> 0 | C13: =団体戦入力!J28 -> 0 | D13: =団体戦入力!K28 -> 0 | E13: =団体戦入力!L28 -> 0 | F13: ． | G13: =団体戦入力!M28 -> 0 | H13: ． | I13: =団体戦入力!N28 -> 0 | J13: =団体戦入力!O28 -> 0 | L13: 大 会 名 | O13: ポイント
B14: =団体戦入力!G28 -> 0 | C14: =団体戦入力!H28 -> 0
A15: 2 | B15: =団体戦入力!I29 -> 0 | C15: =団体戦入力!J29 -> 0 | D15: =団体戦入力!K29 -> 0 | E15: =団体戦入力!L29 -> 0 | F15: ． | G15: =団体戦入力!M29 -> 0 | H15: ． | I15: =団体戦入力!N29 -> 0 | J15: =団体戦入力!O29 -> 0 | L15: =IF(団体戦入力!J20="","",団体戦入力!J20) ->  | O15: =IF(団体戦入力!L20="","",団体戦入力!L20) -> 
B16: =団体戦入力!G29 -> 0 | C16: =団体戦入力!H29 -> 0
A17: 3 | B17: =団体戦入力!I30 -> 0 | C17: =団体戦入力!J30 -> 0 | D17: =団体戦入力!K30 -> 0 | E17: =団体戦入力!L30 -> 0 | F17: ． | G17: =団体戦入力!M30 -> 0 | H17: ． | I17: =団体戦入力!N30 -> 0 | J17: =団体戦入力!O30 -> 0 | L17: =IF(団体戦入力!J21="","",団体戦入力!J21) ->  | O17: =IF(団体戦入力!L21="","",団体戦入力!L21) -> 
B18: =団体戦入力!G30 -> 0 | C18: =団体戦入力!H30 -> 0
A19: 4 | B19: =団体戦入力!I31 -> 0 | C19: =団体戦入力!J31 -> 0 | D19: =団体戦入力!K31 -> 0 | E19: =団体戦入力!L31 -> 0 | F19: ． | G19: =団体戦入力!M31 -> 0 | H19: ． | I19: =団体戦入力!N31 -> 0 | J19: =団体戦入力!O31 -> 0 | L19: =IF(団体戦入力!J22="","",団体戦入力!J22) ->  | O19: =IF(団体戦入力!L22="","",団体戦入力!L22) -> 
B20: =団体戦入力!G31 -> 0 | C20: =団体戦入力!H31 -> 0
A21: 5 | B21: =団体戦入力!I32 -> 0 | C21: =団体戦入力!J32 -> 0 | D21: =団体戦入力!K32 -> 0 | E21: =団体戦入力!L32 -> 0 | F21: ． | G21: =団体戦入力!M32 -> 0 | H21: ． | I21: =団体戦入力!N32 -> 0 | J21: =団体戦入力!O32 -> 0 | L21: ポイント合計 | O21: =IF(団体戦入力!$L$23="","",団体戦入力!$L$23) -> 0
B22: =団体戦入力!G32 -> 0 | C22: =団体戦入力!H32 -> 0
A23: 6 | B23: =団体戦入力!I33 -> 0 | C23: =団体戦入力!J33 -> 0 | D23: =団体戦入力!K33 -> 0 | E23: =団体戦入力!L33 -> 0 | F23: ． | G23: =団体戦入力!M33 -> 0 | H23: ． | I23: =団体戦入力!N33 -> 0 | J23: =団体戦入力!O33 -> 0
B24: =団体戦入力!G33 -> 0 | C24: =団体戦入力!H33 -> 0
A25: 7 | B25: =団体戦入力!I34 -> 0 | C25: =団体戦入力!J34 -> 0 | D25: =団体戦入力!K34 -> 0 | E25: =団体戦入力!L34 -> 0 | F25: ． | G25: =団体戦入力!M34 -> 0 | H25: ． | I25: =団体戦入力!N34 -> 0 | J25: =団体戦入力!O34 -> 0
B26: =団体戦入力!G34 -> 0 | C26: =団体戦入力!H34 -> 0
A27: 8 | B27: =団体戦入力!I35 -> 0 | C27: =団体戦入力!J35 -> 0 | D27: =団体戦入力!K35 -> 0 | E27: =団体戦入力!L35 -> 0 | F27: ． | G27: =団体戦入力!M35 -> 0 | H27: ． | I27: =団体戦入力!N35 -> 0 | J27: =団体戦入力!O35 -> 0
B28: =団体戦入力!G35 -> 0 | C28: =団体戦入力!H35 -> 0

Sheet ﾀﾞﾌﾞﾙｽ主管校用 (hidden)
D3: 〔個人申込〕 | F3: 申し込み数 | H3: =COUNTA(ﾀﾞﾌﾞﾙｽ入力!G35:G66)/2 -> 0 | J3: =LEFT(ﾀﾞﾌﾞﾙｽ入力!C22,1)&"個"&ﾀﾞﾌﾞﾙｽ入力!C24&"_"&ﾀﾞﾌﾞﾙｽ入力!C20 -> 個_
K5: ﾎﾟｲﾝﾄ
A6: 個人AID | B6: 個人BID | C6: No | D6: 地区 | E6: 学校名 | F6: 男女 | G6: 申込順 | H6: 選手Ａ | I6: ・ | J6: 選手Ｂ | K6: =IF(ﾀﾞﾌﾞﾙｽ入力!$P$32="","",ﾀﾞﾌﾞﾙｽ入力!$P$32) -> 県ｲﾝﾄﾞｱ | M6: =IF(ﾀﾞﾌﾞﾙｽ入力!$Q$32="","",ﾀﾞﾌﾞﾙｽ入力!$Q$32) -> HJS | O6: =IF(ﾀﾞﾌﾞﾙｽ入力!$R$32="","",ﾀﾞﾌﾞﾙｽ入力!$R$32) -> 春地区 | Q6: =IF(ﾀﾞﾌﾞﾙｽ入力!$S$32="","",ﾀﾞﾌﾞﾙｽ入力!$S$32) -> 0 | S6: 合計
K7: 選手A | L7: 選手B | M7: 選手A | N7: 選手B | O7: 選手A | P7: 選手B | Q7: 選手A | R7: 選手B | U7: 地区 | V7: 学校名 | W7: ﾍﾞﾝﾁ入り指導者① | X7: 当外 | Y7: ﾍﾞﾝﾁ入り指導者② | Z7: 当外 | AA7: ﾍﾞﾝﾁ入り指導者③ | AB7: 当外 | AC7: ﾍﾞﾝﾁ入り指導者④ | AD7: 当外
A8: 11 | B8: 12 | C8: 1 | D8: =IF($C8<=$H$3,ﾀﾞﾌﾞﾙｽ入力!$C$21,"") ->  | E8: =IF($C8<=$H$3,ﾀﾞﾌﾞﾙｽ入力!$C$24,"") ->  | F8: =IF($C8<=$H$3,ﾀﾞﾌﾞﾙｽ入力!$C$22,"") ->  | G8: 1 | H8: =VLOOKUP($A8,ﾀﾞﾌﾞﾙｽ,4,FALSE)&" "&VLOOKUP($A8,ﾀﾞﾌﾞﾙｽ,5,FALSE) ->  | I8: ・ | J8: =VLOOKUP($B8,ﾀﾞﾌﾞﾙｽ,4,FALSE)&" "&VLOOKUP($B8,ﾀﾞﾌﾞﾙｽ,5,FALSE) ->  | K8: =IF(VLOOKUP($A8,ﾀﾞﾌﾞﾙｽ,19,FALSE)=0,"有"&"("&MID(VLOOKUP($A8,ﾀﾞﾌﾞﾙｽ,13,FALSE),5,2)&")",VLOOKUP($A8,ﾀﾞﾌﾞﾙｽ,19,FALSE)) ->  | L8: =IF(VLOOKUP($B8,ﾀﾞﾌﾞﾙｽ,19,FALSE)=0,"有"&"("&MID(VLOOKUP($B8,ﾀﾞﾌﾞﾙｽ,13,FALSE),5,2)&")",VLOOKUP($B8,ﾀﾞﾌﾞﾙｽ,19,FALSE)) ->  | M8: =IF(VLOOKUP($A8,ﾀﾞﾌﾞﾙｽ,20,FALSE)=0,"有"&"("&MID(VLOOKUP($A8,ﾀﾞﾌﾞﾙｽ,14,FALSE),5,2)&")",VLOOKUP($A8,ﾀﾞﾌﾞﾙｽ,20,FALSE)) ->  | N8: =IF(VLOOKUP($B8,ﾀﾞﾌﾞﾙｽ,20,FALSE)=0,"有"&"("&MID(VLOOKUP($B8,ﾀﾞﾌﾞﾙｽ,14,FALSE),5,2)&")",VLOOKUP($B8,ﾀﾞﾌﾞﾙｽ,20,FALSE)) ->  | O8: =IF(VLOOKUP($A8,ﾀﾞﾌﾞﾙｽ,21,FALSE)=0,"有"&"("&MID(VLOOKUP($A8,ﾀﾞﾌﾞﾙｽ,15,FALSE),5,2)&")",VLOOKUP($A8,ﾀﾞﾌﾞﾙｽ,21,FALSE)) ->  | P8: =IF(VLOOKUP($B8,ﾀﾞﾌﾞﾙｽ,21,FALSE)=0,"有"&"("&MID(VLOOKUP($B8,ﾀﾞﾌﾞﾙｽ,15,FALSE),5,2)&")",VLOOKUP($B8,ﾀﾞﾌﾞﾙｽ,21,FALSE)) ->  | Q8: =IF(VLOOKUP($A8,ﾀﾞﾌﾞﾙｽ,22,FALSE)=0,"有"&"("&MID(VLOOKUP($A8,ﾀﾞﾌﾞﾙｽ,16,FALSE),5,2)&")",VLOOKUP($A8,ﾀﾞﾌﾞﾙｽ,22,FALSE)) ->  | R8: =IF(VLOOKUP($B8,ﾀﾞﾌﾞﾙｽ,22,FALSE)=0,"有"&"("&MID(VLOOKUP($B8,ﾀﾞﾌﾞﾙｽ,16,FALSE),5,2)&")",VLOOKUP($B8,ﾀﾞﾌﾞﾙｽ,22,FALSE)) ->  | S8: =VLOOKUP($A8,ﾀﾞﾌﾞﾙｽ,23,FALSE) ->  | U8: =IF(ﾀﾞﾌﾞﾙｽ入力!$C$21="","",ﾀﾞﾌﾞﾙｽ入力!$C$21) ->  | V8: =IF(ﾀﾞﾌﾞﾙｽ入力!$C$24="","",ﾀﾞﾌﾞﾙｽ入力!$C$24) ->  | W8: =IF(ﾀﾞﾌﾞﾙｽ入力!F25="","",ﾀﾞﾌﾞﾙｽ入力!F25) ->  | X8: =IF(ﾀﾞﾌﾞﾙｽ入力!G25="","",ﾀﾞﾌﾞﾙｽ入力!G25) ->  | Y8: =IF(ﾀﾞﾌﾞﾙｽ入力!F26="","",ﾀﾞﾌﾞﾙｽ入力!F26) ->  | Z8: =IF(ﾀﾞﾌﾞﾙｽ入力!G26="","",ﾀﾞﾌﾞﾙｽ入力!G26) ->  | AA8: =IF(ﾀﾞﾌﾞﾙｽ入力!F27="","",ﾀﾞﾌﾞﾙｽ入力!F27) ->  | AB8: =IF(ﾀﾞﾌﾞﾙｽ入力!G27="","",ﾀﾞﾌﾞﾙｽ入力!G27) ->  | AC8: =IF(ﾀﾞﾌﾞﾙｽ入力!F28="","",ﾀﾞﾌﾞﾙｽ入力!F28) ->  | AD8: =IF(ﾀﾞﾌﾞﾙｽ入力!G28="","",ﾀﾞﾌﾞﾙｽ入力!G28) -> 
A9: 21 | B9: 22 | C9: 2 | D9: =IF($C9<=$H$3,ﾀﾞﾌﾞﾙｽ入力!$C$21,"") ->  | E9: =IF($C9<=$H$3,ﾀﾞﾌﾞﾙｽ入力!$C$24,"") ->  | F9: =IF($C9<=$H$3,ﾀﾞﾌﾞﾙｽ入力!$C$22,"") ->  | G9: 2 | I9: ・ | M9: =IF(VLOOKUP($A9,ﾀﾞﾌﾞﾙｽ,20,FALSE)=0,"有"&"("&MID(VLOOKUP($A9,ﾀﾞﾌﾞﾙｽ,14,FALSE),5,2)&")",VLOOKUP($A9,ﾀﾞﾌﾞﾙｽ,20,FALSE)) -> 
A10: 31 | B10: 32 | C10: 3 | D10: =IF($C10<=$H$3,ﾀﾞﾌﾞﾙｽ入力!$C$21,"") ->  | E10: =IF($C10<=$H$3,ﾀﾞﾌﾞﾙｽ入力!$C$24,"") ->  | F10: =IF($C10<=$H$3,ﾀﾞﾌﾞﾙｽ入力!$C$22,"") ->  | G10: 3 | I10: ・
A11: 41 | B11: 42 | C11: 4 | D11: =IF($C11<=$H$3,ﾀﾞﾌﾞﾙｽ入力!$C$21,"") ->  | E11: =IF($C11<=$H$3,ﾀﾞﾌﾞﾙｽ入力!$C$24,"") ->  | F11: =IF($C11<=$H$3,ﾀﾞﾌﾞﾙｽ入力!$C$22,"") ->  | G11: 4 | I11: ・
A12: 51 | B12: 52 | C12: 5 | D12: =IF($C12<=$H$3,ﾀﾞﾌﾞﾙｽ入力!$C$21,"") ->  | E12: =IF($C12<=$H$3,ﾀﾞﾌﾞﾙｽ入力!$C$24,"") ->  | F12: =IF($C12<=$H$3,ﾀﾞﾌﾞﾙｽ入力!$C$22,"") ->  | G12: 5 | I12: ・
A13: 61 | B13: 62 | C13: 6 | D13: =IF($C13<=$H$3,ﾀﾞﾌﾞﾙｽ入力!$C$21,"") ->  | E13: =IF($C13<=$H$3,ﾀﾞﾌﾞﾙｽ入力!$C$24,"") ->  | F13: =IF($C13<=$H$3,ﾀﾞﾌﾞﾙｽ入力!$C$22,"") ->  | G13: 6 | I13: ・
A14: 71 | B14: 72 | C14: 7 | D14: =IF($C14<=$H$3,ﾀﾞﾌﾞﾙｽ入力!$C$21,"") ->  | E14: =IF($C14<=$H$3,ﾀﾞﾌﾞﾙｽ入力!$C$24,"") ->  | F14: =IF($C14<=$H$3,ﾀﾞﾌﾞﾙｽ入力!$C$22,"") ->  | G14: 7 | I14: ・
A15: 81 | B15: 82 | C15: 8 | D15: =IF($C15<=$H$3,ﾀﾞﾌﾞﾙｽ入力!$C$21,"") ->  | E15: =IF($C15<=$H$3,ﾀﾞﾌﾞﾙｽ入力!$C$24,"") ->  | F15: =IF($C15<=$H$3,ﾀﾞﾌﾞﾙｽ入力!$C$22,"") ->  | G15: 8 | I15: ・
A16: 91 | B16: 92 | C16: 9 | D16: =IF($C16<=$H$3,ﾀﾞﾌﾞﾙｽ入力!$C$21,"") ->  | E16: =IF($C16<=$H$3,ﾀﾞﾌﾞﾙｽ入力!$C$24,"") ->  | F16: =IF($C16<=$H$3,ﾀﾞﾌﾞﾙｽ入力!$C$22,"") ->  | G16: 9 | I16: ・
A17: 101 | B17: 102 | C17: 10 | D17: =IF($C17<=$H$3,ﾀﾞﾌﾞﾙｽ入力!$C$21,"") ->  | E17: =IF($C17<=$H$3,ﾀﾞﾌﾞﾙｽ入力!$C$24,"") ->  | F17: =IF($C17<=$H$3,ﾀﾞﾌﾞﾙｽ入力!$C$22,"") ->  | G17: 10 | I17: ・
A18: 111 | B18: 112 | C18: 11 | D18: =IF($C18<=$H$3,ﾀﾞﾌﾞﾙｽ入力!$C$21,"") ->  | E18: =IF($C18<=$H$3,ﾀﾞﾌﾞﾙｽ入力!$C$24,"") ->  | F18: =IF($C18<=$H$3,ﾀﾞﾌﾞﾙｽ入力!$C$22,"") ->  | G18: 11 | I18: ・
A19: 121 | B19: 122 | C19: 12 | D19: =IF($C19<=$H$3,ﾀﾞﾌﾞﾙｽ入力!$C$21,"") ->  | E19: =IF($C19<=$H$3,ﾀﾞﾌﾞﾙｽ入力!$C$24,"") ->  | F19: =IF($C19<=$H$3,ﾀﾞﾌﾞﾙｽ入力!$C$22,"") ->  | G19: 12 | I19: ・
A20: 131 | B20: 132 | C20: 13 | D20: =IF($C20<=$H$3,ﾀﾞﾌﾞﾙｽ入力!$C$21,"") ->  | E20: =IF($C20<=$H$3,ﾀﾞﾌﾞﾙｽ入力!$C$24,"") ->  | F20: =IF($C20<=$H$3,ﾀﾞﾌﾞﾙｽ入力!$C$22,"") ->  | G20: 13 | I20: ・
A21: 141 | B21: 142 | C21: 14 | D21: =IF($C21<=$H$3,ﾀﾞﾌﾞﾙｽ入力!$C$21,"") ->  | E21: =IF($C21<=$H$3,ﾀﾞﾌﾞﾙｽ入力!$C$24,"") ->  | F21: =IF($C21<=$H$3,ﾀﾞﾌﾞﾙｽ入力!$C$22,"") ->  | G21: 14 | I21: ・
A22: 151 | B22: 152 | C22: 15 | D22: =IF($C22<=$H$3,ﾀﾞﾌﾞﾙｽ入力!$C$21,"") ->  | E22: =IF($C22<=$H$3,ﾀﾞﾌﾞﾙｽ入力!$C$24,"") ->  | F22: =IF($C22<=$H$3,ﾀﾞﾌﾞﾙｽ入力!$C$22,"") ->  | G22: 15 | I22: ・
A23: 161 | B23: 162 | C23: 16 | D23: =IF($C23<=$H$3,ﾀﾞﾌﾞﾙｽ入力!$C$21,"") ->  | E23: =IF($C23<=$H$3,ﾀﾞﾌﾞﾙｽ入力!$C$24,"") ->  | F23: =IF($C23<=$H$3,ﾀﾞﾌﾞﾙｽ入力!$C$22,"") ->  | G23: 16 | I23: ・

Sheet ｼﾝｸﾞﾙｽ主管校用 (hidden)
D3: 〔ｼﾝｸﾞﾙｽ申込〕 | F3: 申し込数 | H3: =COUNTA(ｼﾝｸﾞﾙｽ入力!G28:G39) -> 0 | J3: =LEFT(ｼﾝｸﾞﾙｽ入力!C22,1)&"個"&ｼﾝｸﾞﾙｽ入力!C24&"_"&ｼﾝｸﾞﾙｽ入力!C20 -> 個_
I5: ﾎﾟｲﾝﾄ
C6: No | D6: 地区 | E6: 学校名 | F6: 男女 | G6: 申込順 | H6: 選手 | I6: =IF(ｼﾝｸﾞﾙｽ入力!$P$26="","",ｼﾝｸﾞﾙｽ入力!$P$26) -> 0 | J6: =IF(ｼﾝｸﾞﾙｽ入力!$Q$26="","",ｼﾝｸﾞﾙｽ入力!$Q$26) -> 0 | K6: =IF(ｼﾝｸﾞﾙｽ入力!$R$26="","",ｼﾝｸﾞﾙｽ入力!$R$26) -> 0 | L6: =IF(ｼﾝｸﾞﾙｽ入力!$S$26="","",ｼﾝｸﾞﾙｽ入力!$S$26) -> 0 | M6: 合計
C7: 1 | D7: =IF($C7<=$H$3,ｼﾝｸﾞﾙｽ入力!$C$21,"") ->  | E7: =IF($C7<=$H$3,ｼﾝｸﾞﾙｽ入力!$C$24,"") ->  | F7: =IF($C7<=$H$3,ｼﾝｸﾞﾙｽ入力!$C$22,"") ->  | G7: 1 | H7: =VLOOKUP($C7,ｼﾝｸﾞﾙｽ,2,FALSE)&" "&VLOOKUP($C7,ｼﾝｸﾞﾙｽ,3,FALSE) ->  | I7: =VLOOKUP($C7,ｼﾝｸﾞﾙｽ,17,FALSE) ->  | J7: =VLOOKUP($C7,ｼﾝｸﾞﾙｽ,18,FALSE) ->  | K7: =VLOOKUP($C7,ｼﾝｸﾞﾙｽ,19,FALSE) ->  | L7: =VLOOKUP($C7,ｼﾝｸﾞﾙｽ,20,FALSE) ->  | M7: =VLOOKUP($C7,ｼﾝｸﾞﾙｽ,21,FALSE) -> 
C8: 2 | D8: =IF($C8<=$H$3,ｼﾝｸﾞﾙｽ入力!$C$21,"") ->  | E8: =IF($C8<=$H$3,ｼﾝｸﾞﾙｽ入力!$C$24,"") ->  | F8: =IF($C8<=$H$3,ｼﾝｸﾞﾙｽ入力!$C$22,"") ->  | G8: 2
C9: 3 | D9: =IF($C9<=$H$3,ｼﾝｸﾞﾙｽ入力!$C$21,"") ->  | E9: =IF($C9<=$H$3,ｼﾝｸﾞﾙｽ入力!$C$24,"") ->  | F9: =IF($C9<=$H$3,ｼﾝｸﾞﾙｽ入力!$C$22,"") ->  | G9: 3
C10: 4 | D10: =IF($C10<=$H$3,ｼﾝｸﾞﾙｽ入力!$C$21,"") ->  | E10: =IF($C10<=$H$3,ｼﾝｸﾞﾙｽ入力!$C$24,"") ->  | F10: =IF($C10<=$H$3,ｼﾝｸﾞﾙｽ入力!$C$22,"") ->  | G10: 4
C11: 5 | D11: =IF($C11<=$H$3,ｼﾝｸﾞﾙｽ入力!$C$21,"") ->  | E11: =IF($C11<=$H$3,ｼﾝｸﾞﾙｽ入力!$C$24,"") ->  | F11: =IF($C11<=$H$3,ｼﾝｸﾞﾙｽ入力!$C$22,"") ->  | G11: 5
C12: 6 | D12: =IF($C12<=$H$3,ｼﾝｸﾞﾙｽ入力!$C$21,"") ->  | E12: =IF($C12<=$H$3,ｼﾝｸﾞﾙｽ入力!$C$24,"") ->  | F12: =IF($C12<=$H$3,ｼﾝｸﾞﾙｽ入力!$C$22,"") ->  | G12: 6
C13: 7 | D13: =IF($C13<=$H$3,ｼﾝｸﾞﾙｽ入力!$C$21,"") ->  | E13: =IF($C13<=$H$3,ｼﾝｸﾞﾙｽ入力!$C$24,"") ->  | F13: =IF($C13<=$H$3,ｼﾝｸﾞﾙｽ入力!$C$22,"") ->  | G13: 7
C14: 8 | D14: =IF($C14<=$H$3,ｼﾝｸﾞﾙｽ入力!$C$21,"") ->  | E14: =IF($C14<=$H$3,ｼﾝｸﾞﾙｽ入力!$C$24,"") ->  | F14: =IF($C14<=$H$3,ｼﾝｸﾞﾙｽ入力!$C$22,"") ->  | G14: 8
C15: 9 | D15: =IF($C15<=$H$3,ｼﾝｸﾞﾙｽ入力!$C$21,"") ->  | E15: =IF($C15<=$H$3,ｼﾝｸﾞﾙｽ入力!$C$24,"") ->  | F15: =IF($C15<=$H$3,ｼﾝｸﾞﾙｽ入力!$C$22,"") ->  | G15: 9
C16: 10 | D16: =IF($C16<=$H$3,ｼﾝｸﾞﾙｽ入力!$C$21,"") ->  | E16: =IF($C16<=$H$3,ｼﾝｸﾞﾙｽ入力!$C$24,"") ->  | F16: =IF($C16<=$H$3,ｼﾝｸﾞﾙｽ入力!$C$22,"") ->  | G16: 10
C17: 11 | D17: =IF($C17<=$H$3,ｼﾝｸﾞﾙｽ入力!$C$21,"") ->  | E17: =IF($C17<=$H$3,ｼﾝｸﾞﾙｽ入力!$C$24,"") ->  | F17: =IF($C17<=$H$3,ｼﾝｸﾞﾙｽ入力!$C$22,"") ->  | G17: 11
C18: 12 | D18: =IF($C18<=$H$3,ｼﾝｸﾞﾙｽ入力!$C$21,"") ->  | E18: =IF($C18<=$H$3,ｼﾝｸﾞﾙｽ入力!$C$24,"") ->  | F18: =IF($C18<=$H$3,ｼﾝｸﾞﾙｽ入力!$C$22,"") ->  | G18: 12

Sheet 団体戦主管校用 (hidden)
A3: 〔団体申込〕 | B3: =LEFT(団体戦入力!C20,1)&"団"&団体戦入力!C22&"_"&団体戦入力!C18 -> 団_
A5: 地区名 | B5: 学校名 | C5: 監督（氏名） | D5: 当外 | E5: 男女 | F5: 大会名 | I5: 合計 | J5: 団体メンバー
F6: =団体戦入力!$J$20 -> 0 | G6: =団体戦入力!$J$21 -> 0 | H6: =団体戦入力!$J$22 -> 0 | J6: 選手① | K6: 学年 | L6: 選手② | M6: 学年 | N6: 選手③ | O6: 学年 | P6: 選手④ | Q6: 学年 | R6: 選手⑤ | S6: 学年 | T6: 選手⑥ | U6: 学年 | V6: 選手⑦ | W6: 学年 | X6: 選手⑧ | Y6: 学年
A7: =団体戦入力!C19 -> 0 | B7: =IF(ﾀﾞﾌﾞﾙｽ入力!$C$24="","",ﾀﾞﾌﾞﾙｽ入力!$C$24) ->  | C7: =団体戦入力!F23 -> 0 | D7: =団体戦入力!G23 -> 0 | E7: =団体戦入力!C20 -> 0 | F7: =団体戦入力!L20 ->  | G7: =団体戦入力!L21 ->  | H7: =団体戦入力!L22 ->  | I7: =団体戦入力!$L$23 -> 0 | J7: =団体戦入力!G28&" "&団体戦入力!H28 ->  | K7: =団体戦入力!K28 -> 0 | L7: =団体戦入力!G29&" "&団体戦入力!H29 ->  | M7: =団体戦入力!K29 -> 0 | N7: =団体戦入力!G30&" "&団体戦入力!H30 ->  | O7: =団体戦入力!K30 -> 0 | P7: =団体戦入力!G31&" "&団体戦入力!H31 ->  | Q7: =団体戦入力!K31 -> 0 | R7: =団体戦入力!G32&" "&団体戦入力!H32 ->  | S7: =団体戦入力!K32 -> 0 | T7: =団体戦入力!G33&" "&団体戦入力!H33 ->  | U7: =団体戦入力!K33 -> 0 | V7: =団体戦入力!G34&" "&団体戦入力!H34 ->  | W7: =団体戦入力!K34 -> 0 | X7: =団体戦入力!G35&" "&団体戦入力!H35 ->  | Y7: =団体戦入力!K35 -> 0

Sheet memo
A1: 県・地区 | B1: No | C1: 個人戦大会名 | D1: ﾎﾟｲﾝﾄ用個人戦大会略称名 | E1: 団体戦大会名 | F1: ﾎﾟｲﾝﾄ用団体戦大会略称名 | G1: 地区名 | H1: 男女 | I1: 区分 | J1: 有、学校枠 | K1: 会員番号 | L1: 個人選P | M1: 1 | P1: 2 | S1: 3 | V1: 4 | Y1: 5 | AB1: 6 | AE1: 団体戦P | AF1: 1 | AH1: 2 | AJ1: 3 | AM1: 個人指導者 | AN1: 団体監督
A2: 県大会 | B2: 1 | C2: ハイクールジャパンカップ県代表選考会（ダブルス） | D2: HJS | E2: 春季地区大会 | F2: 春地区 | G2: 新潟 | H2: 男子 | I2: 当 | J2: 有(16) | K2: 申請中 | M2: HJS | N2: 地区用P | O2: 県用P | P2: 春地区 | Q2: 地区用P | R2: 県用P | S2: 県総体 | T2: 地区用P | U2: 県用P | V2: 秋地区 | W2: 地区用P | X2: 県用P | Y2: 県新人 | Z2: 地区用P | AA2: 県用P | AB2: 県ｲﾝﾄﾞｱ | AC2: 地区用P | AD2: 県用P | AF2: 地区選抜 | AG2: P | AH2: 県選抜 | AI2: P | AJ2: 春地区 | AK2: P | AM2: （当 ・ 外） | AN2: （当 ・ 外）
A3: 地区大会 | B3: 2 | C3: ハイクールジャパンカップ県代表選考会（シングルス） | D3: 春地区 | E3: 県総合体育大会ソフトテニス競技 | F3: 県総体 | G3: 下越 | H3: 女子 | I3: 外 | J3: 有(20) | M3: 優勝 | N3: 20 | O3: 20 | P3: 優勝 | Q3: 10 | R3: 10 | S3: 優勝 | T3: 30 | U3: 30 | V3: 優勝 | W3: 10 | X3: 10 | Y3: 優勝 | Z3: 30 | AA3: 30 | AB3: 優勝 | AC3: 20 | AD3: 20 | AF3: 優勝 | AG3: 20 | AH3: 優勝 | AI3: 32 | AJ3: 優勝 | AK3: 32 | AM3: （当 ・ 外） | AN3: （当 ・ 外）
B4: 3 | C4: 春季地区大会 | D4: 県総体 | E4: 高校選抜地区予選会 | F4: 地区選抜 | G4: 中越 | J4: 有(24) | M4: ２位 | N4: 15 | O4: 15 | P4: ２位 | Q4: 6 | R4: 6 | S4: ２位 | T4: 25 | U4: 25 | V4: ２位 | W4: 6 | X4: 6 | Y4: ２位 | Z4: 25 | AA4: 25 | AB4: ２位 | AC4: 15 | AD4: 15 | AF4: ２位 | AG4: 16 | AH4: ２位 | AI4: 24 | AJ4: ２位 | AK4: 24
B5: 4 | C5: 県総合体育大会ソフトテニス競技 | D5: 地区ｼﾝｸﾞﾙｽ研修 | E5: 高校選抜県予選会 | F5: 県選抜 | G5: 上越 | M5: ﾍﾞｽﾄ4 | N5: 10 | O5: 10 | P5: ﾍﾞｽﾄ4 | Q5: 4 | R5: 4 | S5: ﾍﾞｽﾄ4 | T5: 20 | U5: 20 | V5: ﾍﾞｽﾄ4 | W5: 4 | X5: 4 | Y5: ﾍﾞｽﾄ4 | Z5: 20 | AA5: 20 | AB5: ﾍﾞｽﾄ4 | AC5: 10 | AD5: 10 | AF5: ﾍﾞｽﾄ4 | AG5: 10 | AH5: ﾍﾞｽﾄ4 | AI5: 16 | AJ5: ﾍﾞｽﾄ4 | AK5: 16
B6: 5 | C6: 地区シングルス研修大会 | D6: 秋地区 | G6: 佐渡 | M6: ﾍﾞｽﾄ8 | N6: 5 | O6: 5 | P6: ﾍﾞｽﾄ8 | Q6: 2 | R6: 2 | S6: ﾍﾞｽﾄ8(5,6位) | T6: 15 | U6: 15 | V6: ﾍﾞｽﾄ8 | W6: 2 | X6: 2 | Y6: ﾍﾞｽﾄ8 | Z6: 10 | AA6: 10 | AB6: ﾍﾞｽﾄ8 | AC6: 5 | AD6: 5 | AH6: ﾍﾞｽﾄ8 | AI6: 8
B7: 6 | C7: 秋季地区大会（ダブルス） | D7: 県新人 | M7: ﾍﾞｽﾄ16 | N7: 3 | O7: 3 | P7: ﾍﾞｽﾄ16* | Q7: 1 | R7: 有(16) | S7: ﾍﾞｽﾄ8(7,8位) | T7: 10 | U7: 10 | V7: ﾍﾞｽﾄ12* | W7: 1 | X7: 有(12) | Y7: ﾍﾞｽﾄ16 | Z7: 5 | AA7: 5
B8: 7 | C8: 秋季地区大会（シングルス） | D8: 県ｲﾝﾄﾞｱ | P8: ﾍﾞｽﾄ20* | Q8: 1 | R8: 有(20) | S8: ﾍﾞｽﾄ16 | T8: 5 | U8: 5 | V8: ﾍﾞｽﾄ16* | W8: 1 | X8: 有(16)
B9: 8 | C9: 県新人選抜大会（ダブルス） | P9: ﾍﾞｽﾄ24* | Q9: 1 | R9: 有(24) | S9: ﾍﾞｽﾄ32 | T9: 3 | U9: 3 | V9: ﾍﾞｽﾄ20* | W9: 1 | X9: 有(20)
B10: 9 | C10: 県新人選抜大会（シングルス） | V10: ﾍﾞｽﾄ24* | W10: 1 | X10: 有(24)
B11: 10 | C11: 県選抜インドア大会

Sheet 学校名
A1: No | B1: 高校名 | C1: 高体連No | D1: 地区名
A2: 1 | B2: 新潟 | C2: 1 | D2: 新潟
A3: 2 | B3: 新潟中央 | C3: 2 | D3: 新潟
A4: 3 | B4: 新潟南 | C4: 3 | D4: 新潟
A5: 4 | B5: 新潟江南 | C5: 4 | D5: 新潟
A6: 5 | B6: 新潟西 | C6: 5 | D6: 新潟
A7: 6 | B7: 新潟東 | C7: 6 | D7: 新潟
A8: 7 | B8: 新潟北 | C8: 7 | D8: 新潟
A9: 8 | B9: 新潟工 | C9: 8 | D9: 新潟
A10: 9 | B10: 新潟東工 | C10: 9 | D10: 新潟
A11: 10 | B11: 新潟商 | C11: 10 | D11: 新潟
A12: 11 | B12: 新潟向陽 | C12: 11 | D12: 新潟
A13: 12 | B13: 白根 | C13: 12 | D13: 新潟
A14: 13 | B14: 巻 | C14: 13 | D14: 新潟
A15: 14 | B15: 巻総合 | C15: 14 | D15: 新潟
A16: 15 | B16: 西川竹園 | C16: 15 | D16: 新潟
A17: 16 | B17: 吉田 | C17: 16 | D17: 新潟
A18: 17 | B18: 分水 | C18: 17 | D18: 新潟
A19: 18 | B19: 万代 | C19: 18 | D19: 新潟
A20: 19 | B20: 高志 | C20: 19 | D20: 新潟
A21: 20 | B21: 高志中等 | C21: 20 | D21: 新潟
A22: 21 | B22: 新潟明訓 | C22: 21 | D22: 新潟
A23: 22 | B23: 北越 | C23: 22 | D23: 新潟
A24: 23 | B24: 新潟青陵 | C24: 23 | D24: 新潟
A25: 24 | B25: 新潟清心女 | C25: 24 | D25: 新潟
A26: 25 | B26: 敬和学園 | C26: 25 | D26: 新潟
A27: 26 | B27: 新潟第一 | C27: 26 | D27: 新潟
A28: 27 | B28: 東京学館新潟 | C28: 27 | D28: 新潟
A29: 28 | B29: 日本文理 | C29: 28 | D29: 新潟
A30: 29 | B30: 燕中等 | C30: 60 | D30: 新潟
A31: 30 | B31: 加茂 | C31: 61 | D31: 新潟
A32: 31 | B32: 加茂農林 | C32: 62 | D32: 新潟
A33: 32 | B33: 加茂暁星 | C33: 76 | D33: 新潟
A34: 33 | B34: 新発田 | C34: 29 | D34: 下越
A35: 34 | B35: 西新発田 | C35: 30 | D35: 下越
A36: 35 | B36: 新発田南 | C36: 31 | D36: 下越
A37: 36 | B37: 新発田農 | C37: 32 | D37: 下越
A38: 37 | B38: 新発田商 | C38: 33 | D38: 下越
A39: 38 | B39: 村上 | C39: 34 | D39: 下越
A40: 39 | B40: 村上桜ヶ丘 | C40: 35 | D40: 下越
A41: 40 | B41: 村上中等 | C41: 36 | D41: 下越
A42: 41 | B42: 中条 | C42: 37 | D42: 下越
A43: 42 | B43: 阿賀野 | C43: 38 | D43: 下越
A44: 43 | B44: 豊栄 | C44: 39 | D44: 下越
A45: 44 | B45: 新津 | C45: 40 | D45: 下越
A46: 45 | B46: 新津工 | C46: 41 | D46: 下越
A47: 46 | B47: 新津南 | C47: 42 | D47: 下越
A48: 47 | B48: 五泉 | C48: 43 | D48: 下越
A49: 48 | B49: 村松 | C49: 44 | D49: 下越
A50: 49 | B50: 阿賀黎明 | C50: 45 | D50: 下越
A51: 50 | B51: 新発田中央 | C51: 46 | D51: 下越
A52: 51 | B52: 長岡 | C52: 47 | D52: 中越
A53: 52 | B53: 長岡大手 | C53: 48 | D53: 中越
A54: 53 | B54: 長岡向陵 | C54: 49 | D54: 中越
A55: 54 | B55: 長岡農 | C55: 50 | D55: 中越
A56: 55 | B56: 長岡工 | C56: 51 | D56: 中越
A57: 56 | B57: 長岡商 | C57: 52 | D57: 中越
A58: 57 | B58: 見附 | C58: 53 | D58: 中越
A59: 58 | B59: 正徳館 | C59: 54 | D59: 中越
A60: 59 | B60: 栃尾 | C60: 55 | D60: 中越
A61: 60 | B61: 三条 | C61: 56 | D61: 中越
A62: 61 | B62: 三条東 | C62: 57 | D62: 中越
A63: 62 | B63: 新潟県央工 | C63: 58 | D63: 中越
A64: 63 | B64: 三条商 | C64: 59 | D64: 中越
A65: 64 | B65: 小千谷 | C65: 63 | D65: 中越
A66: 65 | B66: 小千谷西 | C66: 64 | D66: 中越
A67: 66 | B67: 小出 | C67: 65 | D67: 中越
A68: 67 | B68: 国際情報 | C68: 66 | D68: 中越
A69: 68 | B69: 六日町 | C69: 67 | D69: 中越
A70: 69 | B70: 八海 | C70: 68 | D70: 中越
A71: 70 | B71: 塩沢商工 | C71: 69 | D71: 中越
A72: 71 | B72: 十日町 | C72: 70 | D72: 中越
A73: 72 | B73: 十日町総合 | C73: 71 | D73: 中越
A74: 73 | B74: 川西 | C74: 72 | D74: 中越
A75: 74 | B75: 津南中等 | C75: 73 | D75: 中越
A76: 75 | B76: 中越 | C76: 74 | D76: 中越
A77: 76 | B77: 帝京長岡 | C77: 75 | D77: 中越
A78: 77 | B78: 長岡工専 | C78: 1000 | D78: 中越
A79: 78 | B79: 柏崎 | C79: 77 | D79: 上越
A80: 79 | B80: 柏崎常盤 | C80: 78 | D80: 上越
A81: 80 | B81: 柏崎総合 | C81: 79 | D81: 上越
A82: 81 | B82: 柏崎工 | C82: 80 | D82: 上越
A83: 82 | B83: 柏崎翔洋中等 | C83: 81 | D83: 上越
A84: 83 | B84: 高田 | C84: 82 | D84: 上越
A85: 84 | B85: 高田北城 | C85: 83 | D85: 上越
A86: 85 | B86: 高田農 | C86: 84 | D86: 上越
A87: 86 | B87: 上越総合技術 | C87: 85 | D87: 上越
A88: 87 | B88: 高田商 | C88: 86 | D88: 上越
A89: 88 | B89: 新井 | C89: 87 | D89: 上越
A90: 89 | B90: 直江津中等 | C90: 88 | D90: 上越
A91: 90 | B91: 有恒 | C91: 89 | D91: 上越
A92: 91 | B92: 久比岐 | C92: 90 | D92: 上越
A93: 92 | B93: 安塚 | C93: 91 | D93: 上越
A94: 93 | B94: 安塚松之山 | C94: 91-1 | D94: 上越
A95: 94 | B95: 松代 | C95: 92 | D95: 上越
A96: 95 | B96: 糸魚川 | C96: 93 | D96: 上越
A97: 96 | B97: 糸魚川白嶺 | C97: 94 | D97: 上越
A98: 97 | B98: 海洋 | C98: 95 | D98: 上越
A99: 98 | B99: 上越 | C99: 96 | D99: 上越
A100: 99 | B100: 関根学園 | C100: 97 | D100: 上越
A101: 100 | B101: 新潟産大附 | C101: 98 | D101: 上越
A102: 101 | B102: 佐渡 | C102: 99 | D102: 佐渡
A103: 102 | B103: 羽茂 | C103: 100 | D103: 佐渡
A104: 103 | B104: 両津 | C104: 101 | D104: 佐渡
A105: 104 | B105: 佐渡中等 | C105: 102 | D105: 佐渡
A106: 105 | B106: 相川 | C106: 103 | D106: 佐渡
A107: 106 | B107: 佐渡総合 | C107: 104 | D107: 佐渡
A108: 107
A109: 108
A110: 109
A111: 110
A112: 111
A113: 112
A114: 113
A115: 114
A116: 115
A117: 116
A118: 117
A119: 118
A120: 119
A121: 120
A122: 121
